{"text_format":"1","workbook":"xlsx","n_sheets":10,"sheets":["Лист1","Калькулятор ","Аркуш1","Додаток 21 \"Форма інформування\"","Продукты","Паспорт кредиту","Лист3","Лист2","Лист4","Лист5"],"not_rendered":{"charts":0,"images":0,"macros":1,"external_links":0,"defined_names":6,"comments":0,"pivot_tables":0},"unopened":[],"bounds":{"document_bytes":16777216,"sheet_cells":100000,"rows_first":2000,"rows_last":500,"rows_between":2000,"halvings":0,"cell_chars":16384,"cell_head_chars":4096},"cells_cut":0,"cells_raw":0,"read":"whole","date_system":"1900"}

{"sheet":"Лист1","index":0,"n_rows":71,"n_cols":7,"rows_kept":71,"cut":false,"hidden":true,"merged":[[69,0,69,6],[62,0,62,1],[62,3,62,5],[70,0,70,6],[63,2,63,5],[64,0,64,6],[65,0,65,6],[66,0,66,1],[66,3,66,5],[67,2,67,5],[68,0,68,1],[57,0,57,6],[58,0,58,6],[59,0,59,6],[61,0,61,6],[56,0,56,6],[45,2,45,6],[46,2,46,6],[47,2,47,6],[48,2,48,6],[49,2,49,6],[44,2,44,6],[32,0,32,1],[33,0,33,1],[35,0,35,1],[36,2,36,6],[37,2,37,6],[38,2,38,6],[39,2,39,6],[40,2,40,6],[41,2,41,6],[50,2,50,6],[52,2,52,6],[53,2,53,6],[54,2,54,6],[55,2,55,6],[51,2,51,6],[19,0,20,1],[19,2,19,3],[20,2,20,3],[21,0,21,3],[23,0,23,5],[25,6,26,6],[42,2,42,6],[43,2,43,6],[29,0,29,2],[29,4,30,6],[30,0,30,2],[31,0,31,1],[24,1,26,1],[24,2,24,3],[25,2,26,2],[25,3,26,3],[25,4,26,4],[24,4,24,6],[0,0,0,1],[1,0,1,1],[2,0,2,1],[14,0,16,5],[18,0,18,1],[18,2,18,3]]}
["Публічне акціонерне товариство \"ТАСКОМБанк\"  "]
["Україна, 01032, м. Київ, вул. С. Петлюри, 30,"]
["безкоштовний телефон: 0 (800) 503 580"]
[null,"Інформація (довідка) про кредит _____________________________:"]
[null,"Розмір кредиту:"]
[null,"Вартість товару (послуги):",null,"грн."]
[null,"Сума на поточні потреби",null,"грн."]
[null,"Сума авансу:",null,"грн."]
[null,"Страховий платiж:",null,"грн."]
[null,"Пенсійний внесок:",null,"грн."]
[null,"Плата за надання кредиту:",null,"грн."]
[null,"Сума договору:",null,"грн."]
[null,"Страхова сума:",null,"грн."]
[]
["Розмір кредиту визначається, як сума вартості товару (послуги) та сума на поточні потреби (за наявності) за мінусом авансового внеску клієнта, а також за рахунок кредиту сплачується страховий платіж  та/або пенсійний внесок та/або плата за надання кредиту. Сума договору і є розміром кредиту, який надається клієнту. Страхова сума це сума, яка є базою для розрахунку страхового платежу. Страхування та сплата пенсійного внеску є окремою послугою, що може надаватись за бажанням клієнта, у тому числі за рахунок кредитних коштів."]
[]
[]
[]
["Internet-banking ТАС 24",null,"-             Сплачуйте за кредитом через Інтернет, а також"]
["https://tas24.ua",null,"-             Поповнюйте депозити"]
[null,null,"-             Здійснюйте платежі"]
["Реєстрація та надання послуг безкоштовні. Детальніше на сайті системи https://tas24.ua"]
[]
["                     Таблиця орієнтовних щомісячних платежів та подорожчання*:"]
["Строк кредиту","Щомісячний платеж, грн","Орієнтовна сукупна вартість кредиту,всього:",null,"в тому числi"]
["(місяців)",null,"у %","у грн.","Сума плати за надання кредиту, грн.","Сума плати за користування кредитом","Сума плати за обслуговування кредитної заборгованості, грн."]
[null,null,null,null,null,"(процентів), грн."]
[]
[]
["Переваги кредитування в рамках даного кредитного продукту:",null,null,null,"Вадами кредитування в рамках даного кредитного продукту є подорожчання товару/послуги"]
["·Оптимізація власного бюджету, за рахунок стабільних платежів"]
["·Моментальне отримання товару"]
["·Низька відсоткова ставка"]
["·Зменшення переплати при достроковому погашенні."]
[]
["Умови кредитування:"]
[null,"Назва кредитного продукту:"]
[null,"Валюта кредиту:","Гривня"]
[null,"Форма кредиту:","Споживчий кредит"]
[null,"Мета кредиту:","Кредит надається: \nбезготівково на оплату товарів чи послуг та оплату супутніх послуг, які пов’язані з отриманням, обслуговуванням і погашенням кредиту, \nна власні потреби готівкою або шляхом перерахування на поточний рахунок позичальника. "]
[null,"Тип процентної ставки","Фіксована/Плаваюча"]
[null,"Плата за користування кредитом (проценти):","______% річних.  \nперші «X» місяців процентна ставка встановлюється на рівні «R»% річних; починаючи з «X1»го місяця користування кредитом процентна ставка встановлюється на рівні «R1»% річних; починаючи з «X2»го місяця користування кредитом процентна ставка встановлюється на рівні «R2»% річних\" \nБанк має право змінювати процентну ставку за кредитом в разі настання події, незалежної від волі сторін Кредитного договору, яка має безпосередній вплив на вартість кредитних ресурсів Банку. В усіх інших випадках процента ставка та вартість супутніх послуг за кредитом змінюється за погодженням між сторонами Кредитного договору згідно з умовами, передбаченими у такому Кредитному договорі."]
[null,"Страховий тариф:","_______ %/ _____ грн. "]
[null,"Cтроки кредитування:","від <Computed Value> до <Computed Value> місяців"]
[null,"Cуми кредитування:","від <Computed Value> до <Computed Value> грн."]
[]
[null,"Форма забезпечення:","Застава товару/інше забезпечення (порука)/кошти на власних рахунках/без забезпечення. Оцінка заставного майна не проводиться"]
[null,"Варіанти повернення (погашення) кредиту:","від <Computed Value> до <Computed Value> місяців"]
[null,"Форма (варіанти) погашення кредиту:","Щомісячно рівними (ануїтетними) платежами.\nАнуїтетні платежі  -  регулярні рівні щомісячні платежі, що направляються на погашення кредиту, а саме основного боргу і процентів, що розраховуються таким чином, що в кінці терміну Кредитного договору за умови виконання зобов'язання Позичальником заборгованість повністю погашається.\nКількість платежів, їх частота та обсяги зазначаються у Графіку платежів згідно Кредитного договору, який в обов’язковому порядку надається для ознайомлення споживачу (позичальнику) до укладання ним Кредитного договору.    \nДаним кредитним продуктом не передбачено інших форм кредитування."]
[null,"Дострокове погашення:","Можливе часткове або повне дострокове погашення кредиту на умовах відсутності штрафних санкцій за вчинення таких дій позичальником"]
[null,"Остаточне погашення:","В кінці строку, вказаного в Кредитному договорі"]
[null,"Податковий режим сплати процентів та державні субсидії","По даному кредитному продукту податкові знижки відсутні, державні субсидії не передбачені"]
[null,"Супутні послуги:"]
[null,"Плата за обслуговування кредитної заборгованості:","_______ щомісячно від суми кредиту\nДана комісія розраховується як процент від суми кредиту, сплачується щомісячно у гривнях у складі ануїтетних платежів. Дана послуга включає в себе розрахунок та надання Позичальнику інформації про стан його заборгованості по кредиту (у вигляді sms-повідомлень, телефонного інформування), інформування про виникнення простроченої заборгованості, формування та надання виписок по рахунку, на якому обліковується кредитна заборгованість, надання консультацій щодо умов строкового та/або дострокового погашення кредитної заборгованості, у тому числі щодо умов дострокового погашення кредитної заборгованості  за декілька періодів, щодо каналів та строків погашення існуючої кредитної заборгованості, зміни умов погашення кредитної заборгованості, встановлення «кредитних канікул», відміни/перегляду розміру штрафних санкцій тощо.\n"]
[null,"Плата за надання кредиту:","___ грн./одноразова комісія, що складає <Computed Value> від суми наданого кредиту. \nДана послуга включає в себе надання послуг з підбору кредитного продукту та умов кредитування, роз’яснення умов кредитування, прийом та аналіз документів, необхідних для оформлення кредиту, консультування щодо умов, каналів, строків погашення кредитної заборгованості, можливості зміни умов погашення кредитної заборгованості тощо."]
[]
["Обов'язкові документи:"]
["1. Паспорт громадянина України"]
["2. Довідка про присвоєння ідентифікаційного номера платника податків (картка платника податків)"]
["В окремих випадках Банк залишає за собою право вимагати інші документи, необхідні для визначення платоспроможності позичальника та які є необхідними для надання споживчого кредиту. "]
[]
["З підписанням цієї Інформації (довідки) про кредит позичальник засвідчує, що перед укладанням Кредитного договору він ознайомлений з інформацією про  умови кредитування, а також повідомлений про орієнтовну сукупну вартість кредиту і ці умови є зрозумілими."]
["_________________________________",null,null,"______________________"]
[null,"Позичальник","Уповноважена особа ПАТ \"ТАСКОМБанк\""]
["Ця Інформація (довідка) про кредит у разі укладання Кредитного договору №____________________ від______________20___р.** вважається (і) його невід’ємною частиною та (іі) детальним розписом сукупної вартості кредиту з урахуванням процентної ставки за ним, вартості супутніх послуг, а також інших фінансових зобов’язань споживача у розумінні"]
["п.3.1. та 3.4. Постанови Правління Національного банку України від 10.05.07р. №168 «Про затвердження Правил надання банками України інформації споживачу про умови кредитування та сукупну вартість кредиту»."]
["_________________________________",null,null,"______________________"]
[null,"Позичальник","Уповноважена особа ПАТ \"ТАСКОМБанк\""]
["_ _ _ _ _ _ _ _ _ _ _ _ _ _ _"]
["*Таблиця орієнтованих щомісячних платежів та подорожчання відображає суму щомісячного погашення кредиту в залежності від вибраного Вами строку кредитування. Таблиця НЕ Є графіком погашення. Графік погашення та чітка сума щомісячного платежу зазначені у Кредитному договорі."]
["**У разі фактичного укладання Кредитного договору його номер та дата вписується уповноваженою особою ПАТ \"ТАСКОМБанк\", на підтвердження чого Позичальник та уповноважена особа ПАТ \"ТАСКОМБанк\" ставлять нижче свої підписи. "]

{"sheet":"Калькулятор ","index":1,"n_rows":126,"n_cols":39,"rows_kept":126,"cut":false,"hidden":false,"merged":[[1,1,1,4],[23,0,26,0],[23,2,26,2],[25,10,25,11],[24,4,26,4],[24,5,26,5],[25,6,25,9],[23,4,23,15],[10,1,10,9],[19,4,19,9],[15,5,15,9],[18,5,18,9],[17,5,17,9],[13,5,13,9],[0,0,0,17],[1,6,1,9],[23,1,26,1],[23,3,26,3],[3,1,3,3],[6,1,6,3],[9,1,9,3],[20,5,20,9],[14,5,14,9],[5,1,5,3],[24,6,24,15],[25,12,25,15],[7,1,7,3],[5,6,5,7],[6,6,6,7],[7,6,7,7],[125,0,125,17],[124,0,124,17],[22,11,22,17],[22,0,22,10],[11,5,11,9],[14,13,19,15],[23,16,26,16],[23,17,26,17],[116,1,116,3],[117,1,117,3],[118,1,118,3],[119,1,119,3],[120,1,120,3]]}
[]
[null,"Кредит на купівлю нового авто HYUNDAI",null,null,null,"Кредит","Ануїтетна схема",null,null,null,"Ануїтетна схема",null,null,null,null,null,{"$f":"IF(G2=K3,1,2)","v":2}]
[null,"Умови:",null,null,null,null,null,null,null,null,"Класична схема"]
[null,"Дата надання кредиту:",null,null,"2025-07-22",null,"Сума кредиту всього: ",null,{"$f":"I6+Q12+Q17","v":100005.00000000003},"грн"]
[null,null,null,null,null,null,"Сума кредиту на КАСКО:",null,{"$f":"Q12+Q16+Q17","v":0},"грн"]
[null,"Вартість автомобіля:",null,null,333350,"грн","Сума кредиту на авто:",null,{"$f":"E6-I7","v":100005.00000000003},"грн.",{"$f":"I6/E6","v":0.3000000000000001}]
[null,"Термін користування кредитом:",null,null,84,"міс.","Сума авансу:",null,{"$f":"K7*E6","v":233344.99999999997},"грн.",{"$f":"E8","v":0.7}]
[null,"Сумма авансу:",null,null,0.7,null,"Страхова сума:",null,{"$f":"E6","v":333350},"грн."]
[null,null,null,null,null,null,null,null,null,null,null,null,null,null,null,null,null,null,null,null,null,null,null,null,null,null,null,null,null,null,null,null,"ЧП \"Актив Плюс\"",null,null,null,"Сплата комісії з кредиту","Сплата страховки 1 з кредиту","Сплата страховки 2 з кредиту"]
[null,"Номінальна процентна ставка: ",null,null,{"$f":"INDEX(Аркуш1!$C$4:$H$10,MATCH('Калькулятор '!$E$7,Аркуш1!$B$4:$B$10,0),MATCH('Калькулятор '!$E$8,Аркуш1!$C$3:$H$3,0))","v":0.1099},"річних",null,null,null,null,null,null,null,null,null,null,null,null,null,null,null,null,null,null,null,null,null,null,null,null,null,"Кредит «Вперед к мечте»","ВАТ \"АКО-Експерт\"",null,null,null,"так","ні","так"]
[null,"Супутні витрати позичальника:",null,null,null,null,null,null,null,null,null,"Включення в кредит",null,null,null,null,null,null,null,null,null,null,null,null,null,null,null,null,null,null,null,"Кредит на покупку недвижимости","ПП \"Вітал-Профі\"",null,null,null,"ні",null,"ні"]
[null,"Комісія за надання кредиту: ",null,null,0,"від  суми кредиту",null,null,null,null,{"$f":"E12*I6","v":0},"ні",null,null,null,null,{"$f":"IF(L12=AK10,K12,0)","v":0},null,null,null,null,null,null,null,null,null,null,null,null,null,null,"Кредит под залог недвижимости","ВАТ \"Кредитне Брокерське Агенство\""]
[null,"Обслуговування кредитної заборгованості: ",null,null,0,"щомісячно від початкової суми кредиту",null,null,null,null,{"$f":"E13*I4","v":0},null,null,null,null,null,null,null,null,null,null,null,null,null,null,null,null,null,null,null,null,"Кредит на навчання","ВАТ \"Вектор оцінки\""]
[null,"Розрахунково-касове обслуговування:  ",null,null,0,"від  суми кредиту",null,null,null,null,{"$f":"$E$14*$I$6","v":0},null,null,null,null,null,null,null,null,null,null,null,null,null,null,null,null,null,null,null,null,"Кредит под депозит","Внутрішній оцінювач Банку"]
[null,"Надання витягів/внесення запису(ів) до ДРОРМ:",null,null,2000,"грн (одноразово)",null,null,null,null,{"$f":"E15","v":2000},null,null,"Дані, выділені червоним кольором, необхідно заповнити",null,null,null,null,null,null,null,null,null,null,null,null,null,null,null,null,null,"Кредит на купівлю автомобіля, що був у використанні"]
[null,"Страхування:",null,null,0,"на рік від основної суми кредиту (страхування життя)",null,null,null,null,{"$f":"E16*I4","v":0},null,null,null,null,null,{"$f":"IF(L16=AL10,K16,0)","v":0},null,null,null,null,null,null,null,null,null,null,null,null,null,null,"Овердрафт для держателей зарплатных карт"]
[null,null,null,null,6.9900000000000004E-2,"на рік від оціночної вартості майна (страхування авто за пакетом КАСКО)",null,null,null,null,{"$f":"E17*E6","v":23301.165000000001},"ні",null,null,null,null,{"$f":"IF(L17=AM10,K17,0)","v":0},null,null,null,null,null,null,null,null,null,null,null,null,null,null,"Кредитная карта VIP"]
[null,"Послуги посередника:",null,null,0,"грн (одноразово)",null,null,null,null,null,null,null,null,null,null,null,null,null,null,null,null,null,null,null,null,null,null,null,null,null,"Овердрафт GOLD"]
[null,"Державна реєстрація транспортного засобу",null,null,1500," грн (одноразово)",null,null,null,null,null,null,null,null,null,null,null,null,null,null,null,null,null,null,null,null,null,null,null,null,null,"Кеш-кредит \"Зручна готівка\" із послугою страхування"]
[null,"Найменування оцінювача:",null,null,"внутрішній оцінювач Банку"]
[null,"Вартість послуг оцінювача:",null,null,2000," грн (щорічно, починаючи з другого року кредитування)",null,null,null,null,null,null,null,null,null,null,null,null,null,null,null,null,null,null,null,null,null,null,null,null,null,"Кеш-кредит \"Зручна готівка\" без послуги страхування"]
[{"$f":"IF(E6>878120,5%,IF(E6>499620,4%,3%))","v":0.03},"Збір на обов'язкове державне пенсійне страхування",null,null,{"$f":"IF(E6>878120,5%*E6,IF(E6>499620,4%*E6,3%*E6))","v":10000.5}," грн (одноразово)"]
["Таблиця з обчислення загальної вартості кредиту для споживача та реальної річної процентної ставки за договором про споживчий кредит \n",null,null,null,null,null,null,null,null,null,null,{"$f":"G2","v":"Ануїтетна схема"},null,null,null,null,null,null,null,null,null,null,null,null,null,null,null,null,null,null,null,"Лізинг нерухомості"]
["№ з/п","Дата видачі кредиту/дата платежу","Кількість днів у розрахунковому періоді","Чиста сума кредиту/сума платежу за розрахунковий період,грн","Види платежів за кредитом",null,null,null,null,null,null,null,null,null,null,null,"Реальна річна процентна ставка,% "," Загальна вартість кредиту, грн ",null,null,null,null,null,null,null,null,null,null,null,null,null,"Кредит \"Легкий\""]
[null,null,null,null,"сума кредиту за договором","проценти за користування кредитом","платежі за  додаткові та/або супутні послуги",null,null,null,null,null,null,null,null,null,null,null,null,null,null,null,null,null,null,null,null,null,null,null,null,"Кредит \"Автосалон\""]
[null,null,null,null,null,null,"банку",null,null,null,"кредитного посередника (за наявності)",null,"третіх осіб"]
[null,null,null,null,null,null," за управління  (обслуговування) кредитною заборгованістю","розрахунково-касове обслуговування","комісія за надання кредиту","надання витягів/внесення запису(ів) до ДРОРМ","комісійний збір","інша плата за послуги кредитного посередника","послуги нотаріуса","прослуги оцінювача","послуги страховика","інші послуги третіх осіб",null,null,"Амортизаія","Залишок",null,"Дата видачі",null,"ins_term","ins_day","ins_nes",null,null,null,null,null,"кредит"]
[1,2,3,4,5,6,"7","8","9","10","11","12","13","14","15","16",17,18,0.1,null,null,{"$f":"DAY(E4)","v":22},null,{"$f":"DATE(YEAR(B29)+1,MONTH(B29),DAY(B29))","v":"2026-07-22"},{"$f":"X28-B29","v":365},null,null,null,null,null,null,"овердрафт"]
[null,{"$f":"E4","v":"2025-07-22"},"х",{"$f":"E29+SUM(G29:P29)","v":-63203.335000000028},{"$f":"I4*(-1)","v":-100005.00000000003},null,null,{"$f":"K14","v":0},{"$f":"I6*E12","v":0},{"$f":"K15","v":2000},{"$f":"E18","v":0},null,{"$f":"E19","v":1500},null,{"$f":"E6*E17+I4*E16","v":23301.165000000001},{"$f":"E22","v":10000.5},"х","х",{"$f":"E6","v":333350},{"$f":"-E29","v":100005.00000000003},null,null,null,{"$f":"IF(Y28>=30,X28,DATE(YEAR(B29)+1,MONTH(B29),DAY(B29)))","v":"2026-07-22"},{"$f":"X29-B30","v":355},{"$f":"IF(AND(Y28<30,T29>1),\"ok\",\"no\")","v":"no"},null,null,null,null,null,null,null,null,null,12]
[1,{"$f":"DATE(YEAR(B29),MONTH(B29)+1,DAY(1))","v":"2025-08-01"},{"$f":"B30-B29","v":10},{"$f":"IF(A30<=$E$7,SUM(E30:P30),0)","v":1349.2127837859559},{"$f":"IF(A30<=$E$7,IF($L$23=\"ануїтетна схема\",IF(A30=$E$7,$I$4,PMT($E$10/365*C30,$E$7,$E$29)-F30),$I$4/$E$7),0)","v":1048.1018385804764},{"$f":"IF(A30<=$E$7,-SUM(E$29)*$E$10/365*C30,0)","v":301.11094520547954},{"$f":"IF(A30>$E$7,0,$K$13)","v":0},null,null,null,null,null,null,{"$f":"IF(Z30=\"ok\",$E$21,\" \")","v":" "},{"$f":"IF(Z30=\"ok\",S30*$E$17+T29*$E$16,\" \")","v":" "},null,"х","х",{"$f":"IF(Z30=\"ok\",S29-S29*$S$28,S29)","v":333350},{"$f":"I4-E30","v":98956.898161419551},null,null,null,{"$f":"IF(Y29>=30,X29,DATE(YEAR(B30)+1,MONTH(B30),DAY(B30)))","v":"2026-07-22"},{"$f":"X30-B31","v":324},{"$f":"IF(AND(Y29<30,T30>1),\"ok\",\"no\")","v":"no"},null,null,null,null,null,null,null,null,null,{"$f":"AJ29+12","v":24}]
[2,{"$f":"DATE(YEAR(B30),MONTH(B30)+1,DAY(B30))","v":"2025-09-01"},{"$f":"B31-B30","v":31},{"$f":"IF(A31<=$E$7,SUM(E31:P31),0)","v":1722.9041748826517},{"$f":"IF(A31<=$E$7,IF($L$23=\"ануїтетна схема\",IF(A31=$E$7,$I$4-SUM($E$30:E30),PMT($E$10/365*C31,$E$7,$E$29)-F31),$I$4/$E$7),0)","v":799.24319859185641},{"$f":"IF(A31<=$E$7,-SUM(E$29:E30)*$E$10/365*C31,0)","v":923.66097629079525},{"$f":"IF(A31>$E$7,0,$K$13)","v":0},null,null,null,null,null,null,{"$f":"IF(Z31=\"ok\",$E$21,\" \")","v":" "},{"$f":"IF(Z31=\"ok\",S31*$E$17+T30*$E$16,\" \")","v":" "},null,"х","х",{"$f":"IF(Z31=\"ok\",S30-S30*$S$28,S30)","v":333350},{"$f":"T30-E31","v":98157.654962827699},null,null,null,"2026-07-22",294,"no",null,null,null,null,null,null,null,null,null,{"$f":"AJ30+12","v":36}]
[3,{"$f":"DATE(YEAR(B31),MONTH(B31)+1,DAY(B31))","v":"2025-10-01"},30,{"$f":"IF(A32<=$E$7,SUM(E32:P32),0)","v":1703.8990137977551},{"$f":"IF(A32<=$E$7,IF($L$23=\"ануїтетна схема\",IF(A32=$E$7,$I$4-SUM($E$30:E31),PMT($E$10/365*C32,$E$7,$E$29)-F32),$I$4/$E$7),0)","v":817.2530181472265},{"$f":"IF(A32<=$E$7,-SUM(E$29:E31)*$E$10/365*C32,0)","v":886.64599565052856},0,null,null,null,null,null,null," "," ",null,"х","х",333350,{"$f":"T31-E32","v":97340.401944680474},null,null,null,"2026-07-22",263,"no",null,null,null,null,null,null,null,null,null,48]
[4,"2025-11-01",31,1722.9041748826517,{"$f":"IF(A33<=$E$7,IF($L$23=\"ануїтетна схема\",IF(A33=$E$7,$I$4-SUM($E$30:E32),PMT($E$10/365*C33,$E$7,$E$29)-F33),$I$4/$E$7),0)","v":814.33152999133131},{"$f":"IF(A33<=$E$7,-SUM(E$29:E32)*$E$10/365*C33,0)","v":908.57264489132035},0,null,null,null,null,null,null," "," ",null,"х","х",333350,96526.070414689137,null,null,null,"2026-07-22",233,"no",null,null,null,null,null,null,null,null,null,60]
[5,"2025-12-01",30,1703.8990137977551,{"$f":"IF(A34<=$E$7,IF($L$23=\"ануїтетна схема\",IF(A34=$E$7,$I$4-SUM($E$30:E33),PMT($E$10/365*C34,$E$7,$E$29)-F34),$I$4/$E$7),0)","v":831.99092021630281},{"$f":"IF(A34<=$E$7,-SUM(E$29:E33)*$E$10/365*C34,0)","v":871.90809358145225},0,null,null,null,null,null,null," "," ",null,"х","х",333350,95694.07949447284,null,null,null,"2026-07-22",202,"no",null,null,null,null,null,null,null,null,null,72]
[6,"2026-01-01",31,1722.9041748826517,{"$f":"IF(A35<=$E$7,IF($L$23=\"ануїтетна схема\",IF(A35=$E$7,$I$4-SUM($E$30:E34),PMT($E$10/365*C35,$E$7,$E$29)-F35),$I$4/$E$7),0)","v":829.6982586368448},{"$f":"IF(A35<=$E$7,-SUM(E$29:E34)*$E$10/365*C35,0)","v":893.20591624580686},0,null,null,null,null,null,null," "," ",null,"х","х",333350,94864.381235836001,null,null,null,"2026-07-22",171,"no",null,null,null,null,null,null,null,null,null,84]
[7,"2026-02-01",31,1722.9041748826517,{"$f":"IF(A36<=$E$7,IF($L$23=\"ануїтетна схема\",IF(A36=$E$7,$I$4-SUM($E$30:E35),PMT($E$10/365*C36,$E$7,$E$29)-F36),$I$4/$E$7),0)","v":837.44263945150192},{"$f":"IF(A36<=$E$7,-SUM(E$29:E35)*$E$10/365*C36,0)","v":885.46153543114974},0,null,null,null,null,null,null," "," ",null,"х","х",333350,94026.938596384498,null,null,null,"2026-07-22",143,"no"]
[8,"2026-03-01",28,1666.2440869174911,{"$f":"IF(A37<=$E$7,IF($L$23=\"ануїтетна схема\",IF(A37=$E$7,$I$4-SUM($E$30:E36),PMT($E$10/365*C37,$E$7,$E$29)-F37),$I$4/$E$7),0)","v":873.53259253723263},{"$f":"IF(A37<=$E$7,-SUM(E$29:E36)*$E$10/365*C37,0)","v":792.7114943802585},0,null,null,null,null,null,null," "," ",null,"х","х",333350,93153.406003847267,null,null,null,"2026-07-22",112,"no"]
[9,"2026-04-01",31,1722.9041748826517,{"$f":"IF(A38<=$E$7,IF($L$23=\"ануїтетна схема\",IF(A38=$E$7,$I$4-SUM($E$30:E37),PMT($E$10/365*C38,$E$7,$E$29)-F38),$I$4/$E$7),0)","v":853.412835390851},{"$f":"IF(A38<=$E$7,-SUM(E$29:E37)*$E$10/365*C38,0)","v":869.49133949180066},0,null,null,null,null,null,null," "," ",null,"х","х",333350,92299.993168456422,null,null,null,"2026-07-22",82,"no"]
[10,"2026-05-01",30,1703.8990137977551,{"$f":"IF(A39<=$E$7,IF($L$23=\"ануїтетна схема\",IF(A39=$E$7,$I$4-SUM($E$30:E38),PMT($E$10/365*C39,$E$7,$E$29)-F39),$I$4/$E$7),0)","v":870.16455495830064},{"$f":"IF(A39<=$E$7,-SUM(E$29:E38)*$E$10/365*C39,0)","v":833.73445883945442},0,null,null,null,null,null,null," "," ",null,"х","х",333350,91429.828613498117,null,null,null,"2026-07-22",51,"no"]
[11,"2026-06-01",31,1722.9041748826517,{"$f":"IF(A40<=$E$7,IF($L$23=\"ануїтетна схема\",IF(A40=$E$7,$I$4-SUM($E$30:E39),PMT($E$10/365*C40,$E$7,$E$29)-F40),$I$4/$E$7),0)","v":869.50065953107162},{"$f":"IF(A40<=$E$7,-SUM(E$29:E39)*$E$10/365*C40,0)","v":853.40351535158004},0,null,null,null,null,null,null," "," ",null,"х","х",333350,90560.327953967048,null,null,null,"2026-07-22",21,"no"]
[12,"2026-07-01",30,{"$f":"IF(A41<=$E$7,SUM(E41:P41),0)","v":24674.947513797757},{"$f":"IF(A41<=$E$7,IF($L$23=\"ануїтетна схема\",IF(A41=$E$7,$I$4-SUM($E$30:E40),PMT($E$10/365*C41,$E$7,$E$29)-F41),$I$4/$E$7),0)","v":885.87873636151016},{"$f":"IF(A41<=$E$7,-SUM(E$29:E40)*$E$10/365*C41,0)","v":818.0202774362449},0,null,null,null,null,null,null,2000,20971.048500000001,null,"х","х",300015,89674.449217605536,null,null,null,"2027-07-01",334,"ok"]
[13,"2026-08-01",31,1722.9041748826517,{"$f":"IF(A42<=$E$7,IF($L$23=\"ануїтетна схема\",IF(A42=$E$7,$I$4-SUM($E$30:E41),PMT($E$10/365*C42,$E$7,$E$29)-F42),$I$4/$E$7),0)","v":885.8853227197468},{"$f":"IF(A42<=$E$7,-SUM(E$29:E41)*$E$10/365*C42,0)","v":837.01885216290486},0,null,null,null,null,null,null," "," ",null,"х","х",300015,88788.563894885796,null,null,null,"2027-07-01",303,"no"]
[14,"2026-09-01",31,1722.9041748826517,{"$f":"IF(A43<=$E$7,IF($L$23=\"ануїтетна схема\",IF(A43=$E$7,$I$4-SUM($E$30:E42),PMT($E$10/365*C43,$E$7,$E$29)-F43),$I$4/$E$7),0)","v":894.15415205118211},{"$f":"IF(A43<=$E$7,-SUM(E$29:E42)*$E$10/365*C43,0)","v":828.75002283146955},0,null,null,null,null,null,null," "," ",null,"х","х",300015,87894.409742834614,null,null,null,"2027-07-01",273,"no"]
[15,"2026-10-01",30,1703.8990137977551,{"$f":"IF(A44<=$E$7,IF($L$23=\"ануїтетна схема\",IF(A44=$E$7,$I$4-SUM($E$30:E43),PMT($E$10/365*C44,$E$7,$E$29)-F44),$I$4/$E$7),0)","v":909.95964688782169},{"$f":"IF(A44<=$E$7,-SUM(E$29:E43)*$E$10/365*C44,0)","v":793.93936690993337},0,null,null,null,null,null,null," "," ",null,"х","х",300015,86984.450095946799,null,null,null,"2027-07-01",242,"no"]
[16,"2026-11-01",31,1722.9041748826517,{"$f":"IF(A45<=$E$7,IF($L$23=\"ануїтетна схема\",IF(A45=$E$7,$I$4-SUM($E$30:E44),PMT($E$10/365*C45,$E$7,$E$29)-F45),$I$4/$E$7),0)","v":910.99370082270332},{"$f":"IF(A45<=$E$7,-SUM(E$29:E44)*$E$10/365*C45,0)","v":811.91047405994834},0,null,null,null,null,null,null," "," ",null,"х","х",300015,86073.4563951241,null,null,null,"2027-07-01",212,"no"]
[17,"2026-12-01",30,1703.8990137977551,{"$f":"IF(A46<=$E$7,IF($L$23=\"ануїтетна схема\",IF(A46=$E$7,$I$4-SUM($E$30:E45),PMT($E$10/365*C46,$E$7,$E$29)-F46),$I$4/$E$7),0)","v":926.40809397659314},{"$f":"IF(A46<=$E$7,-SUM(E$29:E45)*$E$10/365*C46,0)","v":777.49091982116192},0,null,null,null,null,null,null," "," ",null,"х","х",300015,85147.048301147501,null,null,null,"2027-07-01",181,"no"]
[18,"2027-01-01",31,1722.9041748826517,{"$f":"IF(A47<=$E$7,IF($L$23=\"ануїтетна схема\",IF(A47=$E$7,$I$4-SUM($E$30:E46),PMT($E$10/365*C47,$E$7,$E$29)-F47),$I$4/$E$7),0)","v":928.14395883558473},{"$f":"IF(A47<=$E$7,-SUM(E$29:E46)*$E$10/365*C47,0)","v":794.76021604706693},0,null,null,null,null,null,null," "," ",null,"х","х",300015,84218.904342311915,null,null,null,"2027-07-01",150,"no"]
[19,"2027-02-01",31,1722.9041748826517,{"$f":"IF(A48<=$E$7,IF($L$23=\"ануїтетна схема\",IF(A48=$E$7,$I$4-SUM($E$30:E47),PMT($E$10/365*C48,$E$7,$E$29)-F48),$I$4/$E$7),0)","v":936.80722911875455},{"$f":"IF(A48<=$E$7,-SUM(E$29:E47)*$E$10/365*C48,0)","v":786.09694576389711},0,null,null,null,null,null,null," "," ",null,"х","х",300015,83282.097113193158,null,null,null,"2027-07-01",122,"no"]
[20,"2027-03-01",28,1666.2440869174911,{"$f":"IF(A49<=$E$7,IF($L$23=\"ануїтетна схема\",IF(A49=$E$7,$I$4-SUM($E$30:E48),PMT($E$10/365*C49,$E$7,$E$29)-F49),$I$4/$E$7),0)","v":964.11896572100352},{"$f":"IF(A49<=$E$7,-SUM(E$29:E48)*$E$10/365*C49,0)","v":702.12512119648761},0,null,null,null,null,null,null," "," ",null,"х","х",300015,82317.978147472153,null,null,null,"2027-07-01",91,"no"]
[21,"2027-04-01",31,1722.9041748826517,{"$f":"IF(A50<=$E$7,IF($L$23=\"ануїтетна схема\",IF(A50=$E$7,$I$4-SUM($E$30:E49),PMT($E$10/365*C50,$E$7,$E$29)-F50),$I$4/$E$7),0)","v":954.55042214121909},{"$f":"IF(A50<=$E$7,-SUM(E$29:E49)*$E$10/365*C50,0)","v":768.35375274143257},0,null,null,null,null,null,null," "," ",null,"х","х",300015,81363.427725330941,null,null,null,"2027-07-01",61,"no"]
[22,"2027-05-01",30,1703.8990137977551,{"$f":"IF(A51<=$E$7,IF($L$23=\"ануїтетна схема\",IF(A51=$E$7,$I$4-SUM($E$30:E50),PMT($E$10/365*C51,$E$7,$E$29)-F51),$I$4/$E$7),0)","v":968.95320226236845},{"$f":"IF(A51<=$E$7,-SUM(E$29:E50)*$E$10/365*C51,0)","v":734.94581153538661},0,null,null,null,null,null,null," "," ",null,"х","х",300015,80394.474523068566,null,null,null,"2027-07-01",30,"no"]
[23,"2027-06-01",31,1722.9041748826517,{"$f":"IF(A52<=$E$7,IF($L$23=\"ануїтетна схема\",IF(A52=$E$7,$I$4-SUM($E$30:E51),PMT($E$10/365*C52,$E$7,$E$29)-F52),$I$4/$E$7),0)","v":972.50435227267269},{"$f":"IF(A52<=$E$7,-SUM(E$29:E51)*$E$10/365*C52,0)","v":750.39982260997897},0,null,null,null,null,null,null," "," ",null,"х","х",300015,79421.970170795888,null,null,null,"2027-07-01",{"$f":"X52-B53","v":0},"no"]
[24,"2027-07-01",30,22577.842663797757,{"$f":"IF(A53<=$E$7,IF($L$23=\"ануїтетна схема\",IF(A53=$E$7,$I$4-SUM($E$30:E52),PMT($E$10/365*C53,$E$7,$E$29)-F53),$I$4/$E$7),0)","v":986.49014899470285},{"$f":"IF(A53<=$E$7,-SUM(E$29:E52)*$E$10/365*C53,0)","v":717.40886480305221},0,null,null,null,null,null,null,2000,18873.943650000001,null,"х","х",270013.5,78435.480021801181,null,null,null,"2028-07-01",335,"ok"]
[25,"2027-08-01",31,1722.9041748826517,{"$f":"IF(A54<=$E$7,IF($L$23=\"ануїтетна схема\",IF(A54=$E$7,$I$4-SUM($E$30:E53),PMT($E$10/365*C54,$E$7,$E$29)-F54),$I$4/$E$7),0)","v":990.78955327642029},{"$f":"IF(A54<=$E$7,-SUM(E$29:E53)*$E$10/365*C54,0)","v":732.11462160623137},0,null,null,null,null,null,null," "," ",null,"х","х",270013.5,77444.690468524757,null,null,null,"2028-07-01",304,"no"]
[26,"2027-09-01",31,1722.9041748826517,{"$f":"IF(A55<=$E$7,IF($L$23=\"ануїтетна схема\",IF(A55=$E$7,$I$4-SUM($E$30:E54),PMT($E$10/365*C55,$E$7,$E$29)-F55),$I$4/$E$7),0)","v":1000.0375558217831},{"$f":"IF(A55<=$E$7,-SUM(E$29:E54)*$E$10/365*C55,0)","v":722.86661906086852},0,null,null,null,null,null,null," "," ",null,"х","х",270013.5,76444.652912702979,null,null,null,"2028-07-01",274,"no"]
[27,"2027-10-01",30,1703.8990137977551,{"$f":"IF(A56<=$E$7,IF($L$23=\"ануїтетна схема\",IF(A56=$E$7,$I$4-SUM($E$30:E55),PMT($E$10/365*C56,$E$7,$E$29)-F56),$I$4/$E$7),0)","v":1013.3838887205447},{"$f":"IF(A56<=$E$7,-SUM(E$29:E55)*$E$10/365*C56,0)","v":690.51512507721031},0,null,null,null,null,null,null," "," ",null,"х","х",270013.5,75431.26902398243,null,null,null,"2028-07-01",243,"no"]
[28,"2027-11-01",31,1722.9041748826517,{"$f":"IF(A57<=$E$7,IF($L$23=\"ануїтетна схема\",IF(A57=$E$7,$I$4-SUM($E$30:E56),PMT($E$10/365*C57,$E$7,$E$29)-F57),$I$4/$E$7),0)","v":1018.8307764229099},{"$f":"IF(A57<=$E$7,-SUM(E$29:E56)*$E$10/365*C57,0)","v":704.07339845974172},0,null,null,null,null,null,null," "," ",null,"х","х",270013.5,74412.438247559519,null,null,null,"2028-07-01",213,"no"]
[29,"2027-12-01",30,1703.8990137977551,{"$f":"IF(A58<=$E$7,IF($L$23=\"ануїтетна схема\",IF(A58=$E$7,$I$4-SUM($E$30:E57),PMT($E$10/365*C58,$E$7,$E$29)-F58),$I$4/$E$7),0)","v":1031.7406332437722},{"$f":"IF(A58<=$E$7,-SUM(E$29:E57)*$E$10/365*C58,0)","v":672.15838055398285},0,null,null,null,null,null,null," "," ",null,"х","х",270013.5,73380.697614315752,null,null,null,"2028-07-01",182,"no"]
[30,"2028-01-01",31,1722.9041748826517,{"$f":"IF(A59<=$E$7,IF($L$23=\"ануїтетна схема\",IF(A59=$E$7,$I$4-SUM($E$30:E58),PMT($E$10/365*C59,$E$7,$E$29)-F59),$I$4/$E$7),0)","v":1037.9707537807001},{"$f":"IF(A59<=$E$7,-SUM(E$29:E58)*$E$10/365*C59,0)","v":684.93342110195158},0,null,null,null,null,null,null," "," ",null,"х","х",270013.5,72342.726860535055,null,null,null,"2028-07-01",151,"no"]
[31,"2028-02-01",31,1722.9041748826517,{"$f":"IF(A60<=$E$7,IF($L$23=\"ануїтетна схема\",IF(A60=$E$7,$I$4-SUM($E$30:E59),PMT($E$10/365*C60,$E$7,$E$29)-F60),$I$4/$E$7),0)","v":1047.6591443589341},{"$f":"IF(A60<=$E$7,-SUM(E$29:E59)*$E$10/365*C60,0)","v":675.24503052371745},0,null,null,null,null,null,null," "," ",null,"х","х",270013.5,71295.067716176127,null,null,null,"2028-07-01",122,"no"]
[32,"2028-03-01",29,1685.0121544834058,{"$f":"IF(A61<=$E$7,IF($L$23=\"ануїтетна схема\",IF(A61=$E$7,$I$4-SUM($E$30:E60),PMT($E$10/365*C61,$E$7,$E$29)-F61),$I$4/$E$7),0)","v":1062.4792495019676},{"$f":"IF(A61<=$E$7,-SUM(E$29:E60)*$E$10/365*C61,0)","v":622.53290498143815},0,null,null,null,null,null,null," "," ",null,"х","х",270013.5,70232.588466674162,null,null,null,"2028-07-01",91,"no"]
[33,"2028-04-01",31,1722.9041748826517,{"$f":"IF(A62<=$E$7,IF($L$23=\"ануїтетна схема\",IF(A62=$E$7,$I$4-SUM($E$30:E61),PMT($E$10/365*C62,$E$7,$E$29)-F62),$I$4/$E$7),0)","v":1067.3551183152208},{"$f":"IF(A62<=$E$7,-SUM(E$29:E61)*$E$10/365*C62,0)","v":655.54905656743074},0,null,null,null,null,null,null," "," ",null,"х","х",270013.5,69165.233348358946,null,null,null,"2028-07-01",61,"no"]
[34,"2028-05-01",30,1703.8990137977551,{"$f":"IF(A63<=$E$7,IF($L$23=\"ануїтетна схема\",IF(A63=$E$7,$I$4-SUM($E$30:E62),PMT($E$10/365*C63,$E$7,$E$29)-F63),$I$4/$E$7),0)","v":1079.1379881825785},{"$f":"IF(A63<=$E$7,-SUM(E$29:E62)*$E$10/365*C63,0)","v":624.76102561517655},0,null,null,null,null,null,null," "," ",null,"х","х",270013.5,68086.095360176361,null,null,null,"2028-07-01",30,"no"]
[35,"2028-06-01",31,1722.9041748826517,{"$f":"IF(A64<=$E$7,IF($L$23=\"ануїтетна схема\",IF(A64=$E$7,$I$4-SUM($E$30:E63),PMT($E$10/365*C64,$E$7,$E$29)-F64),$I$4/$E$7),0)","v":1087.390426163241},{"$f":"IF(A64<=$E$7,-SUM(E$29:E63)*$E$10/365*C64,0)","v":635.5137487194105},0,null,null,null,null,null,null," "," ",null,"х","х",270013.5,66998.70493401312,null,null,null,"2028-07-01",0,"no"]
[36,"2028-07-01",30,20690.448298797757,{"$f":"IF(A65<=$E$7,IF($L$23=\"ануїтетна схема\",IF(A65=$E$7,$I$4-SUM($E$30:E64),PMT($E$10/365*C65,$E$7,$E$29)-F65),$I$4/$E$7),0)","v":1098.7079722431215},{"$f":"IF(A65<=$E$7,-SUM(E$29:E64)*$E$10/365*C65,0)","v":605.19104155463356},0,null,null,null,null,null,null,2000,16986.549285000001,null,"х","х",243012.15,65899.996961769997,null,null,null,"2029-07-01",334,"ok"]
[37,"2028-08-01",31,1722.9041748826517,{"$f":"IF(A66<=$E$7,IF($L$23=\"ануїтетна схема\",IF(A66=$E$7,$I$4-SUM($E$30:E65),PMT($E$10/365*C66,$E$7,$E$29)-F66),$I$4/$E$7),0)","v":1107.7954087208593},{"$f":"IF(A66<=$E$7,-SUM(E$29:E65)*$E$10/365*C66,0)","v":615.10876616179235},0,null,null,null,null,null,null," "," ",null,"х","х",243012.15,64792.201553049141,null,null,null,"2029-07-01",303,"no"]
[38,"2028-09-01",31,1722.9041748826517,{"$f":"IF(A67<=$E$7,IF($L$23=\"ануїтетна схема\",IF(A67=$E$7,$I$4-SUM($E$30:E66),PMT($E$10/365*C67,$E$7,$E$29)-F67),$I$4/$E$7),0)","v":1118.1355407153005},{"$f":"IF(A67<=$E$7,-SUM(E$29:E66)*$E$10/365*C67,0)","v":604.76863416735102},0,null,null,null,null,null,null," "," ",null,"х","х",243012.15,63674.066012333838,null,null,null,"2029-07-01",273,"no"]
[39,"2028-10-01",30,1703.8990137977551,{"$f":"IF(A68<=$E$7,IF($L$23=\"ануїтетна схема\",IF(A68=$E$7,$I$4-SUM($E$30:E67),PMT($E$10/365*C68,$E$7,$E$29)-F68),$I$4/$E$7),0)","v":1128.7390257356601},{"$f":"IF(A68<=$E$7,-SUM(E$29:E67)*$E$10/365*C68,0)","v":575.15998806209495},0,null,null,null,null,null,null," "," ",null,"х","х",243012.15,62545.326986598178,null,null,null,"2029-07-01",242,"no"]
[40,"2028-11-01",31,1722.9041748826517,{"$f":"IF(A69<=$E$7,IF($L$23=\"ануїтетна схема\",IF(A69=$E$7,$I$4-SUM($E$30:E68),PMT($E$10/365*C69,$E$7,$E$29)-F69),$I$4/$E$7),0)","v":1139.1078063603468},{"$f":"IF(A69<=$E$7,-SUM(E$29:E68)*$E$10/365*C69,0)","v":583.79636852230499},0,null,null,null,null,null,null," "," ",null,"х","х",243012.15,61406.219180237829,null,null,null,"2029-07-01",212,"no"]
[41,"2028-12-01",30,1703.8990137977548,{"$f":"IF(A70<=$E$7,IF($L$23=\"ануїтетна схема\",IF(A70=$E$7,$I$4-SUM($E$30:E69),PMT($E$10/365*C70,$E$7,$E$29)-F70),$I$4/$E$7),0)","v":1149.2242065724286},{"$f":"IF(A70<=$E$7,-SUM(E$29:E69)*$E$10/365*C70,0)","v":554.67480722532639},0,null,null,null,null,null,null," "," ",null,"х","х",243012.15,60256.994973665402,null,null,null,"2029-07-01",181,"no"]
[42,"2029-01-01",31,1722.9041748826517,{"$f":"IF(A71<=$E$7,IF($L$23=\"ануїтетна схема\",IF(A71=$E$7,$I$4-SUM($E$30:E70),PMT($E$10/365*C71,$E$7,$E$29)-F71),$I$4/$E$7),0)","v":1160.4670346750333},{"$f":"IF(A71<=$E$7,-SUM(E$29:E70)*$E$10/365*C71,0)","v":562.43714020761831},0,null,null,null,null,null,null," "," ",null,"х","х",243012.15,59096.527938990366,null,null,null,"2029-07-01",150,"no"]
[43,"2029-02-01",31,1722.9041748826517,{"$f":"IF(A72<=$E$7,IF($L$23=\"ануїтетна схема\",IF(A72=$E$7,$I$4-SUM($E$30:E71),PMT($E$10/365*C72,$E$7,$E$29)-F72),$I$4/$E$7),0)","v":1171.2988021830729},{"$f":"IF(A72<=$E$7,-SUM(E$29:E71)*$E$10/365*C72,0)","v":551.60537269957877},0,null,null,null,null,null,null," "," ",null,"х","х",243012.15,57925.229136807291,null,null,null,"2029-07-01",122,"no"]
[44,"2029-03-01",28,1666.2440869174911,{"$f":"IF(A73<=$E$7,IF($L$23=\"ануїтетна схема\",IF(A73=$E$7,$I$4-SUM($E$30:E72),PMT($E$10/365*C73,$E$7,$E$29)-F73),$I$4/$E$7),0)","v":1177.8947304797284},{"$f":"IF(A73<=$E$7,-SUM(E$29:E72)*$E$10/365*C73,0)","v":488.34935643776271},0,null,null,null,null,null,null," "," ",null,"х","х",243012.15,56747.334406327565,null,null,null,"2029-07-01",91,"no"]
[45,"2029-04-01",31,1722.9041748826517,{"$f":"IF(A74<=$E$7,IF($L$23=\"ануїтетна схема\",IF(A74=$E$7,$I$4-SUM($E$30:E73),PMT($E$10/365*C74,$E$7,$E$29)-F74),$I$4/$E$7),0)","v":1193.2261102554808},{"$f":"IF(A74<=$E$7,-SUM(E$29:E73)*$E$10/365*C74,0)","v":529.6780646271709},0,null,null,null,null,null,null," "," ",null,"х","х",243012.15,55554.108296072081,null,null,null,"2029-07-01",61,"no"]
[46,"2029-05-01",30,1703.8990137977551,{"$f":"IF(A75<=$E$7,IF($L$23=\"ануїтетна схема\",IF(A75=$E$7,$I$4-SUM($E$30:E74),PMT($E$10/365*C75,$E$7,$E$29)-F75),$I$4/$E$7),0)","v":1202.0856026959752},{"$f":"IF(A75<=$E$7,-SUM(E$29:E74)*$E$10/365*C75,0)","v":501.81341110177982},0,null,null,null,null,null,null," "," ",null,"х","х",243012.15,54352.022693376108,null,null,null,"2029-07-01",30,"no"]
[47,"2029-06-01",31,1722.9041748826517,{"$f":"IF(A76<=$E$7,IF($L$23=\"ануїтетна схема\",IF(A76=$E$7,$I$4-SUM($E$30:E75),PMT($E$10/365*C76,$E$7,$E$29)-F76),$I$4/$E$7),0)","v":1215.5838841591913},{"$f":"IF(A76<=$E$7,-SUM(E$29:E75)*$E$10/365*C76,0)","v":507.32029072346046},0,null,null,null,null,null,null," "," ",null,"х","х",243012.15,53136.438809216917,null,null,null,"2029-07-01",0,"no"]
[48,"2029-07-01",30,18991.793370297757,{"$f":"IF(A77<=$E$7,IF($L$23=\"ануїтетна схема\",IF(A77=$E$7,$I$4-SUM($E$30:E76),PMT($E$10/365*C77,$E$7,$E$29)-F77),$I$4/$E$7),0)","v":1223.9241131018971},{"$f":"IF(A77<=$E$7,-SUM(E$29:E76)*$E$10/365*C77,0)","v":479.97490069585797},0,null,null,null,null,null,null,2000,15287.894356500001,null,"х","х",218710.935,51912.514696115017,null,null,null,"2030-07-01",334,"ok"]
[49,"2029-08-01",31,1722.9041748826517,{"$f":"IF(A78<=$E$7,IF($L$23=\"ануїтетна схема\",IF(A78=$E$7,$I$4-SUM($E$30:E77),PMT($E$10/365*C78,$E$7,$E$29)-F78),$I$4/$E$7),0)","v":1238.3541849697908},{"$f":"IF(A78<=$E$7,-SUM(E$29:E77)*$E$10/365*C78,0)","v":484.54998991286095},0,null,null,null,null,null,null," "," ",null,"х","х",218710.935,50674.160511145223,null,null,null,"2030-07-01",303,"no"]
[50,"2029-09-01",31,1722.9041748826517,{"$f":"IF(A79<=$E$7,IF($L$23=\"ануїтетна схема\",IF(A79=$E$7,$I$4-SUM($E$30:E78),PMT($E$10/365*C79,$E$7,$E$29)-F79),$I$4/$E$7),0)","v":1249.9129490047867},{"$f":"IF(A79<=$E$7,-SUM(E$29:E78)*$E$10/365*C79,0)","v":472.99122587786485},0,null,null,null,null,null,null," "," ",null,"х","х",218710.935,49424.247562140437,null,null,null,"2030-07-01",273,"no"]
[51,"2029-10-01",30,1703.8990137977551,{"$f":"IF(A80<=$E$7,IF($L$23=\"ануїтетна схема\",IF(A80=$E$7,$I$4-SUM($E$30:E79),PMT($E$10/365*C80,$E$7,$E$29)-F80),$I$4/$E$7),0)","v":1257.4558789693249},{"$f":"IF(A80<=$E$7,-SUM(E$29:E79)*$E$10/365*C80,0)","v":446.44313482843017},0,null,null,null,null,null,null," "," ",null,"х","х",218710.935,48166.791683171112,null,null,null,"2030-07-01",242,"no"]
[52,"2029-11-01",31,1722.9041748826517,{"$f":"IF(A81<=$E$7,IF($L$23=\"ануїтетна схема\",IF(A81=$E$7,$I$4-SUM($E$30:E80),PMT($E$10/365*C81,$E$7,$E$29)-F81),$I$4/$E$7),0)","v":1273.3166609500609},{"$f":"IF(A81<=$E$7,-SUM(E$29:E80)*$E$10/365*C81,0)","v":449.58751393259081},0,null,null,null,null,null,null," "," ",null,"х","х",218710.935,46893.47502222105,null,null,null,"2030-07-01",212,"no"]
[53,"2029-12-01",30,1703.8990137977553,{"$f":"IF(A82<=$E$7,IF($L$23=\"ануїтетна схема\",IF(A82=$E$7,$I$4-SUM($E$30:E81),PMT($E$10/365*C82,$E$7,$E$29)-F82),$I$4/$E$7),0)","v":1280.316035309364},{"$f":"IF(A82<=$E$7,-SUM(E$29:E81)*$E$10/365*C82,0)","v":423.58297848839118},0,null,null,null,null,null,null," "," ",null,"х","х",218710.935,45613.158986911687,null,null,null,"2030-07-01",181,"no"]
[54,"2030-01-01",31,1722.9041748826517,{"$f":"IF(A83<=$E$7,IF($L$23=\"ануїтетна схема\",IF(A83=$E$7,$I$4-SUM($E$30:E82),PMT($E$10/365*C83,$E$7,$E$29)-F83),$I$4/$E$7),0)","v":1297.1521985744066},{"$f":"IF(A83<=$E$7,-SUM(E$29:E82)*$E$10/365*C83,0)","v":425.75197630824493},0,null,null,null,null,null,null," "," ",null,"х","х",218710.935,44316.006788337283,null,null,null,"2030-07-01",150,"no"]
[55,"2030-02-01",31,1722.9041748826517,{"$f":"IF(A84<=$E$7,IF($L$23=\"ануїтетна схема\",IF(A84=$E$7,$I$4-SUM($E$30:E83),PMT($E$10/365*C84,$E$7,$E$29)-F84),$I$4/$E$7),0)","v":1309.2597816574837},{"$f":"IF(A84<=$E$7,-SUM(E$29:E83)*$E$10/365*C84,0)","v":413.6443932251679},0,null,null,null,null,null,null," "," ",null,"х","х",218710.935,43006.747006679798,null,null,null,"2030-07-01",122,"no"]
[56,"2030-03-01",28,1666.2440869174911,{"$f":"IF(A85<=$E$7,IF($L$23=\"ануїтетна схема\",IF(A85=$E$7,$I$4-SUM($E$30:E84),PMT($E$10/365*C85,$E$7,$E$29)-F85),$I$4/$E$7),0)","v":1303.6677529751485},{"$f":"IF(A85<=$E$7,-SUM(E$29:E84)*$E$10/365*C85,0)","v":362.57633394234267},0,null,null,null,null,null,null," "," ",null,"х","х",218710.935,41703.079253704651,null,null,null,"2030-07-01",91,"no"]
[57,"2030-04-01",31,1722.9041748826517,{"$f":"IF(A86<=$E$7,IF($L$23=\"ануїтетна схема\",IF(A86=$E$7,$I$4-SUM($E$30:E85),PMT($E$10/365*C86,$E$7,$E$29)-F86),$I$4/$E$7),0)","v":1333.6487756786889},{"$f":"IF(A86<=$E$7,-SUM(E$29:E85)*$E$10/365*C86,0)","v":389.25539920396267},0,null,null,null,null,null,null," "," ",null,"х","х",218710.935,40369.430478025963,null,null,null,"2030-07-01",61,"no"]
[58,"2030-05-01",30,1703.8990137977551,{"$f":"IF(A87<=$E$7,IF($L$23=\"ануїтетна схема\",IF(A87=$E$7,$I$4-SUM($E$30:E86),PMT($E$10/365*C87,$E$7,$E$29)-F87),$I$4/$E$7),0)","v":1339.2469253428192},{"$f":"IF(A87<=$E$7,-SUM(E$29:E86)*$E$10/365*C87,0)","v":364.65208845493589},0,null,null,null,null,null,null," "," ",null,"х","х",218710.935,39030.183552683142,null,null,null,"2030-07-01",30,"no"]
[59,"2030-06-01",31,1722.9041748826517,{"$f":"IF(A88<=$E$7,IF($L$23=\"ануїтетна схема\",IF(A88=$E$7,$I$4-SUM($E$30:E87),PMT($E$10/365*C88,$E$7,$E$29)-F88),$I$4/$E$7),0)","v":1358.5975109220044},{"$f":"IF(A88<=$E$7,-SUM(E$29:E87)*$E$10/365*C88,0)","v":364.30666396064714},0,null,null,null,null,null,null," "," ",null,"х","х",218710.935,37671.58604176114,null,null,null,"2030-07-01",0,"no"]
[60,"2030-07-01",30,17463.003934647753,{"$f":"IF(A89<=$E$7,IF($L$23=\"ануїтетна схема\",IF(A89=$E$7,$I$4-SUM($E$30:E88),PMT($E$10/365*C89,$E$7,$E$29)-F89),$I$4/$E$7),0)","v":1363.6162215246413},{"$f":"IF(A89<=$E$7,-SUM(E$29:E88)*$E$10/365*C89,0)","v":340.28279227311361},0,null,null,null,null,null,null,2000,13759.104920849999,null,"х","х",196839.84149999998,36307.969820236496,null,null,null,"2031-07-01",334,"ok"]
[61,"2030-08-01",31,1722.9041748826517,{"$f":"IF(A90<=$E$7,IF($L$23=\"ануїтетна схема\",IF(A90=$E$7,$I$4-SUM($E$30:E89),PMT($E$10/365*C90,$E$7,$E$29)-F90),$I$4/$E$7),0)","v":1384.0065793194635},{"$f":"IF(A90<=$E$7,-SUM(E$29:E89)*$E$10/365*C90,0)","v":338.89759556318825},0,null,null,null,null,null,null," "," ",null,"х","х",196839.84149999998,34923.96324091703,null,null,null,"2031-07-01",303,"no"]
[62,"2030-09-01",31,1722.9041748826517,{"$f":"IF(A91<=$E$7,IF($L$23=\"ануїтетна схема\",IF(A91=$E$7,$I$4-SUM($E$30:E90),PMT($E$10/365*C91,$E$7,$E$29)-F91),$I$4/$E$7),0)","v":1396.9248588128428},{"$f":"IF(A91<=$E$7,-SUM(E$29:E90)*$E$10/365*C91,0)","v":325.97931606980887},0,null,null,null,null,null,null," "," ",null,"х","х",196839.84149999998,33527.038382104191,null,null,null,"2031-07-01",273,"no"]
[63,"2030-10-01",30,1703.8990137977551,{"$f":"IF(A92<=$E$7,IF($L$23=\"ануїтетна схема\",IF(A92=$E$7,$I$4-SUM($E$30:E91),PMT($E$10/365*C92,$E$7,$E$29)-F92),$I$4/$E$7),0)","v":1401.0534095626933},{"$f":"IF(A92<=$E$7,-SUM(E$29:E91)*$E$10/365*C92,0)","v":302.84560423506167},0,null,null,null,null,null,null," "," ",null,"х","х",196839.84149999998,32125.984972541497,null,null,null,"2031-07-01",242,"no"]
[64,"2030-11-01",31,1722.9041748826517,{"$f":"IF(A93<=$E$7,IF($L$23=\"ануїтетна схема\",IF(A93=$E$7,$I$4-SUM($E$30:E92),PMT($E$10/365*C93,$E$7,$E$29)-F93),$I$4/$E$7),0)","v":1423.0411113129212},{"$f":"IF(A93<=$E$7,-SUM(E$29:E92)*$E$10/365*C93,0)","v":299.86306356973046},0,null,null,null,null,null,null," "," ",null,"х","х",196839.84149999998,30702.943861228574,null,null,null,"2031-07-01",212,"no"]
[65,"2030-12-01",30,1703.8990137977551,{"$f":"IF(A94<=$E$7,IF($L$23=\"ануїтетна схема\",IF(A94=$E$7,$I$4-SUM($E$30:E93),PMT($E$10/365*C94,$E$7,$E$29)-F94),$I$4/$E$7),0)","v":1426.563107193726},{"$f":"IF(A94<=$E$7,-SUM(E$29:E93)*$E$10/365*C94,0)","v":277.33590660402911},0,null,null,null,null,null,null," "," ",null,"х","х",196839.84149999998,29276.38075403485,null,null,null,{"$f":"IF(Y93>=30,X93,DATE(YEAR(B94)+1,MONTH(B94),DAY(B94)))","v":"2031-07-01"},181,{"$f":"IF(AND(Y93<30,T94>1),\"ok\",\"no\")","v":"no"}]
[66,"2031-01-01",{"$f":"B95-B94","v":31},1722.9041748826517,{"$f":"IF(A95<=$E$7,IF($L$23=\"ануїтетна схема\",IF(A95=$E$7,$I$4-SUM($E$30:E94),PMT($E$10/365*C95,$E$7,$E$29)-F95),$I$4/$E$7),0)","v":1449.6392390171138},{"$f":"IF(A95<=$E$7,-SUM(E$29:E94)*$E$10/365*C95,0)","v":273.26493586553789},{"$f":"IF(A95>$E$7,0,$K$13)","v":0},null,null,null,null,null,null,{"$f":"IF(Z95=\"ok\",$E$21,\" \")","v":" "},{"$f":"IF(Z95=\"ok\",S95*$E$17+T94*$E$16,\" \")","v":" "},null,"х","х",{"$f":"IF(Z95=\"ok\",S94-S94*$S$28,S94)","v":196839.84149999998},27826.741515017737,null,null,null,"2031-07-01",150,"no"]
[67,{"$f":"DATE(YEAR(B95),MONTH(B95)+1,DAY(B95))","v":"2031-02-01"},31,{"$f":"IF(A96<=$E$7,SUM(E96:P96),0)","v":1722.9041748826517},{"$f":"IF(A96<=$E$7,IF($L$23=\"ануїтетна схема\",IF(A96=$E$7,$I$4-SUM($E$30:E95),PMT($E$10/365*C96,$E$7,$E$29)-F96),$I$4/$E$7),0)","v":1463.1701319579561},{"$f":"IF(A96<=$E$7,-SUM(E$29:E95)*$E$10/365*C96,0)","v":259.7340429246957},0,null,null,null,null,null,null," "," ",null,"х","х",196839.84149999998,{"$f":"T95-E96","v":26363.571383059782},null,null,null,"2031-07-01",122,"no"]
[68,"2031-03-01",28,1666.2440869174911,{"$f":"IF(A97<=$E$7,IF($L$23=\"ануїтетна схема\",IF(A97=$E$7,$I$4-SUM($E$30:E96),PMT($E$10/365*C97,$E$7,$E$29)-F97),$I$4/$E$7),0)","v":1443.9811229176239},{"$f":"IF(A97<=$E$7,-SUM(E$29:E96)*$E$10/365*C97,0)","v":222.26296399986728},0,null,null,null,null,null,null," "," ",null,"х","х",196839.84149999998,24919.590260142159,null,null,null,"2031-07-01",91,"no"]
[69,"2031-04-01",31,1722.9041748826517,{"$f":"IF(A98<=$E$7,IF($L$23=\"ануїтетна схема\",IF(A98=$E$7,$I$4-SUM($E$30:E97),PMT($E$10/365*C98,$E$7,$E$29)-F98),$I$4/$E$7),0)","v":1490.305402122985},{"$f":"IF(A98<=$E$7,-SUM(E$29:E97)*$E$10/365*C98,0)","v":232.59877275966662},0,null,null,null,null,null,null," "," ",null,"х","х",196839.84149999998,23429.284858019175,null,null,null,"2031-07-01",61,"no"]
[70,"2031-05-01",30,1703.8990137977551,{"$f":"IF(A99<=$E$7,IF($L$23=\"ануїтетна схема\",IF(A99=$E$7,$I$4-SUM($E$30:E98),PMT($E$10/365*C99,$E$7,$E$29)-F99),$I$4/$E$7),0)","v":1492.2651722172366},{"$f":"IF(A99<=$E$7,-SUM(E$29:E98)*$E$10/365*C99,0)","v":211.63384158051841},0,null,null,null,null,null,null," "," ",null,"х","х",196839.84149999998,21937.019685801937,null,null,null,"2031-07-01",30,"no"]
[71,"2031-06-01",31,1722.9041748826517,{"$f":"IF(A100<=$E$7,IF($L$23=\"ануїтетна схема\",IF(A100=$E$7,$I$4-SUM($E$30:E99),PMT($E$10/365*C100,$E$7,$E$29)-F100),$I$4/$E$7),0)","v":1518.1446341496144},{"$f":"IF(A100<=$E$7,-SUM(E$29:E99)*$E$10/365*C100,0)","v":204.75954073303734},0,null,null,null,null,null,null," "," ",null,"х","х",196839.84149999998,20418.875051652321,null,null,null,"2031-07-01",0,"no"]
[72,"2031-07-01",30,16087.093442562753,{"$f":"IF(A101<=$E$7,IF($L$23=\"ануїтетна схема\",IF(A101=$E$7,$I$4-SUM($E$30:E100),PMT($E$10/365*C101,$E$7,$E$29)-F101),$I$4/$E$7),0)","v":1519.4578328517341},{"$f":"IF(A101<=$E$7,-SUM(E$29:E100)*$E$10/365*C101,0)","v":184.44118094602106},0,null,null,null,null,null,null,2000,12383.194428764999,null,"х","х",177155.85734999998,18899.417218800587,null,null,null,"2032-07-01",335,"ok"]
[73,"2031-08-01",31,1722.9041748826517,{"$f":"IF(A102<=$E$7,IF($L$23=\"ануїтетна схема\",IF(A102=$E$7,$I$4-SUM($E$30:E101),PMT($E$10/365*C102,$E$7,$E$29)-F102),$I$4/$E$7),0)","v":1546.4975323546196},{"$f":"IF(A102<=$E$7,-SUM(E$29:E101)*$E$10/365*C102,0)","v":176.40664252803211},0,null,null,null,null,null,null," "," ",null,"х","х",177155.85734999998,17352.919686445966,null,null,null,"2032-07-01",304,"no"]
[74,"2031-09-01",31,1722.9041748826517,{"$f":"IF(A103<=$E$7,IF($L$23=\"ануїтетна схема\",IF(A103=$E$7,$I$4-SUM($E$30:E102),PMT($E$10/365*C103,$E$7,$E$29)-F103),$I$4/$E$7),0)","v":1560.9324979518221},{"$f":"IF(A103<=$E$7,-SUM(E$29:E102)*$E$10/365*C103,0)","v":161.97167693082949},0,null,null,null,null,null,null," "," ",null,"х","х",177155.85734999998,15791.987188494144,null,null,null,"2032-07-01",274,"no"]
[75,"2031-10-01",30,1703.8990137977551,{"$f":"IF(A104<=$E$7,IF($L$23=\"ануїтетна схема\",IF(A104=$E$7,$I$4-SUM($E$30:E103),PMT($E$10/365*C104,$E$7,$E$29)-F104),$I$4/$E$7),0)","v":1561.251940481412},{"$f":"IF(A104<=$E$7,-SUM(E$29:E103)*$E$10/365*C104,0)","v":142.64707331634298},0,null,null,null,null,null,null," "," ",null,"х","х",177155.85734999998,14230.735248012732,null,null,null,"2032-07-01",243,"no"]
[76,"2031-11-01",31,1722.9041748826517,{"$f":"IF(A105<=$E$7,IF($L$23=\"ануїтетна схема\",IF(A105=$E$7,$I$4-SUM($E$30:E104),PMT($E$10/365*C105,$E$7,$E$29)-F105),$I$4/$E$7),0)","v":1590.0748819608584},{"$f":"IF(A105<=$E$7,-SUM(E$29:E104)*$E$10/365*C105,0)","v":132.82929292179332},0,null,null,null,null,null,null," "," ",null,"х","х",177155.85734999998,12640.660366051874,null,null,null,"2032-07-01",213,"no"]
[77,"2031-12-01",30,1703.8990137977551,{"$f":"IF(A106<=$E$7,IF($L$23=\"ануїтетна схема\",IF(A106=$E$7,$I$4-SUM($E$30:E105),PMT($E$10/365*C106,$E$7,$E$29)-F106),$I$4/$E$7),0)","v":1589.7174871487878},{"$f":"IF(A106<=$E$7,-SUM(E$29:E105)*$E$10/365*C106,0)","v":114.18152664896721},0,null,null,null,null,null,null," "," ",null,"х","х",177155.85734999998,11050.942878903086,null,null,null,"2032-07-01",182,"no"]
[78,"2032-01-01",31,1722.9041748826517,{"$f":"IF(A107<=$E$7,IF($L$23=\"ануїтетна схема\",IF(A107=$E$7,$I$4-SUM($E$30:E106),PMT($E$10/365*C107,$E$7,$E$29)-F107),$I$4/$E$7),0)","v":1619.7549768165286},{"$f":"IF(A107<=$E$7,-SUM(E$29:E106)*$E$10/365*C107,0)","v":103.14919806612308},0,null,null,null,null,null,null," "," ",null,"х","х",177155.85734999998,9431.1879020865581,null,null,null,"2032-07-01",151,"no"]
[79,"2032-02-01",31,1722.9041748826517,{"$f":"IF(A108<=$E$7,IF($L$23=\"ануїтетна схема\",IF(A108=$E$7,$I$4-SUM($E$30:E107),PMT($E$10/365*C108,$E$7,$E$29)-F108),$I$4/$E$7),0)","v":1634.8737253932854},{"$f":"IF(A108<=$E$7,-SUM(E$29:E107)*$E$10/365*C108,0)","v":88.030449489366276},0,null,null,null,null,null,null," "," ",null,"х","х",177155.85734999998,7796.3141766932731,null,null,null,"2032-07-01",122,"no"]
[80,"2032-03-01",29,1685.0121544834058,{"$f":"IF(A109<=$E$7,IF($L$23=\"ануїтетна схема\",IF(A109=$E$7,$I$4-SUM($E$30:E108),PMT($E$10/365*C109,$E$7,$E$29)-F109),$I$4/$E$7),0)","v":1616.9364478737095},{"$f":"IF(A109<=$E$7,-SUM(E$29:E108)*$E$10/365*C109,0)","v":68.07570660969624},0,null,null,null,null,null,null," "," ",null,"х","х",177155.85734999998,6179.3777288195633,null,null,null,"2032-07-01",91,"no"]
[81,"2032-04-01",31,1722.9041748826517,{"$f":"IF(A110<=$E$7,IF($L$23=\"ануїтетна схема\",IF(A110=$E$7,$I$4-SUM($E$30:E109),PMT($E$10/365*C110,$E$7,$E$29)-F110),$I$4/$E$7),0)","v":1665.2260324598699},{"$f":"IF(A110<=$E$7,-SUM(E$29:E109)*$E$10/365*C110,0)","v":57.678142422781839},0,null,null,null,null,null,null," "," ",null,"х","х",177155.85734999998,4514.1516963596932,null,null,null,"2032-07-01",61,"no"]
[82,"2032-05-01",30,1703.8990137977551,{"$f":"IF(A111<=$E$7,IF($L$23=\"ануїтетна схема\",IF(A111=$E$7,$I$4-SUM($E$30:E110),PMT($E$10/365*C111,$E$7,$E$29)-F111),$I$4/$E$7),0)","v":1663.1232380637882},{"$f":"IF(A111<=$E$7,-SUM(E$29:E110)*$E$10/365*C111,0)","v":40.775775733966874},0,null,null,null,null,null,null," "," ",null,"х","х",177155.85734999998,2851.0284582959048,null,null,null,"2032-07-01",30,"no"]
[83,"2032-06-01",31,1722.9041748826517,{"$f":"IF(A112<=$E$7,IF($L$23=\"ануїтетна схема\",IF(A112=$E$7,$I$4-SUM($E$30:E111),PMT($E$10/365*C112,$E$7,$E$29)-F112),$I$4/$E$7),0)","v":1696.2927533632865},{"$f":"IF(A112<=$E$7,-SUM(E$29:E111)*$E$10/365*C112,0)","v":26.611421519365255},0,null,null,null,null,null,null," "," ",null,"х","х",177155.85734999998,1154.7357049326183,null,null,null,"2032-07-01",0,"no"]
[84,"2032-07-01",30,1165.1662901905604,{"$f":"IF(A113<=$E$7,IF($L$23=\"ануїтетна схема\",IF(A113=$E$7,$I$4-SUM($E$30:E112),PMT($E$10/365*C113,$E$7,$E$29)-F113),$I$4/$E$7),0)","v":1154.7357049325801},{"$f":"IF(A113<=$E$7,-SUM(E$29:E112)*$E$10/365*C113,0)","v":10.430585257980391},0,null,null,null,null,null,null," "," ",null,"х","х",177155.85734999998,3.8198777474462986E-11,null,null,null,"2033-07-01",null,"no"]
["Усього",null,{"$f":"SUM(C30:C113)","v":2536},null,{"$f":"SUM(E30:E113)","v":100005.00000000003},{"$f":"SUM(F30:F113)","v":42915.297584437452},{"$f":"SUM(G30:G113)","v":0},{"$f":"SUM(H29:H113)","v":0},{"$f":"SUM(I29:I113)","v":0},{"$f":"SUM(J29:J113)","v":2000},{"$f":"SUM(K29:K113)","v":0},0,1500,12000,121562.90014111501,10000.5,{"$f":"XIRR(D29:D113,B29:B113)","v":0.75521808862686135},{"$f":"SUM(E114:P114)","v":289983.69772555248}]
[]
[null,"Орієнтовні розрахункові параметри:"]
[null,"Загальна сума кредиту, грн",null,null,{"$f":"E114","v":100005.00000000003}]
[null,"Авансовий внесок Клієнта, грн",null,null,{"$f":"I7","v":233344.99999999997}]
[null,"Орієнтовна загальна вартість кредиту, грн",null,null,{"$f":"R114","v":289983.69772555248}]
[null,"Орієнтовні загальні витрати по кредиту, грн",null,null,{"$f":"E119-E117","v":189978.69772555245}]
[null,"Орієнтовна реальна річна процентна ставка",null,null,{"$f":"Q114","v":0.75521808862686135}]
[]
[null,"Один екземпляр Інформації про умови кредитування та орієнтовну сукупну вартість кредиту отримав(ла).",null,null,null,null,null,null,"_______________________",null,"____________________"]
[null,null,null,null,null,null,null,null,"дата",null,"підпис"]
["Примітка: \nобчислення  реальної процентної ставки має базуватися  на припущенні, що :\n1) договір про споживчий кредит залишається дійсним протягом погодженого строку та що кредитодавець  і споживач виконають свої обов `язки на умовах та у строки, визначені в договорі;\n2) процентна ставка та інші платежі за послуги кредитодавця  залишатимуться незмінними та застосовуватимуться протягом строку дії договору про споживчий кредит."]
["3)  використання інших способів надання кредиту та/або зміна інших вищезазначених умов кредитування можуть мати наслідком застосування іншої реальної річної процентної ставки та орієнтовної загальної вартості кредиту для споживача. \n Орієнтовна реальна річна процентна ставка обчислена з використанням фінансової функції ЧИСТВНДОХ програмного продукту Microsoft Excel."]

{"sheet":"Аркуш1","index":2,"n_rows":10,"n_cols":9,"rows_kept":10,"cut":false,"hidden":true,"merged":[]}
[]
[null,"Термін","внесок","внесок","внесок","внесок","внесок","внесок","разова комісія"]
[null,"кредиту, міс.",0.2,0.3,0.4,0.5,0.6,0.7,"банку, %"]
[null,12,9.9900000000000003E-2,8.9899999999999994E-2,7.9899999999999999E-2,5.4899999999999997E-2,2.9899999999999999E-2,1E-4,0]
[null,24,0.1399,0.1399,0.11990000000000001,9.9900000000000003E-2,7.9899999999999999E-2,3.9899999999999998E-2,0]
[null,36,0.15490000000000001,0.15490000000000001,0.12989999999999999,0.1149,9.5899999999999999E-2,5.9900000000000002E-2,0]
[null,48,0.15989999999999999,0.15989999999999999,0.14990000000000001,0.1249,0.1099,7.9899999999999999E-2,0]
[null,60,0.16250000000000001,0.16250000000000001,0.15989999999999999,0.13389999999999999,0.11990000000000001,8.9899999999999994E-2,0]
[null,72,0.17249999999999999,0.17249999999999999,0.15989999999999999,0.13489999999999999,0.1249,9.9900000000000003E-2,0]
[null,84,0.1699,0.1699,0.15989999999999999,0.1399,0.12989999999999999,0.1099,0]

{"sheet":"Додаток 21 \"Форма інформування\"","index":3,"n_rows":81,"n_cols":8,"rows_kept":81,"cut":false,"hidden":true,"merged":[[0,0,0,7],[73,1,73,7],[64,1,64,2],[64,4,64,6],[65,3,65,6],[66,1,66,7],[72,1,72,7],[70,1,70,2],[67,1,67,7],[68,1,68,2],[68,4,68,6],[69,3,69,6],[71,1,71,7],[49,3,49,7],[56,3,56,7],[58,1,58,7],[59,1,59,7],[60,1,60,7],[63,1,63,7],[37,3,37,7],[38,3,38,7],[39,3,39,7],[40,3,40,7],[41,3,41,7],[42,3,42,7],[54,3,54,7],[55,3,55,7],[43,3,43,7],[44,3,44,7],[45,3,45,7],[53,3,53,7],[50,3,50,7],[51,3,51,7],[52,3,52,7],[26,4,27,4],[26,7,27,7],[46,3,46,7],[30,1,30,3],[31,1,31,3],[32,1,32,2],[33,1,33,2],[30,5,31,7],[36,1,36,2],[2,1,2,2],[3,1,3,2],[15,1,17,6],[24,1,24,6],[1,1,1,3],[1,5,1,6],[61,1,61,7],[26,5,27,5],[19,1,19,2],[19,3,19,4],[34,1,34,2],[20,3,20,4],[21,3,21,4],[20,1,21,2],[22,1,22,4],[47,3,47,7],[47,2,48,2],[48,3,48,7],[25,2,27,2],[25,3,25,4],[25,5,25,7],[26,3,27,3]]}
["Інформація про умови кредитування та орієнтовну сукупну вартість кредиту"]
[null,"ПУБЛІЧНЕ АКЦІОНЕРНЕ ТОВАРИСТВО \"ТАСКОМБАНК\"  "]
[null,"Україна, 01032, м. Київ, вул. С. Петлюри, 30,"]
[null,"безкоштовний телефон: 0 (800) 503 580"]
[]
[null,null,"Розмір кредиту:"]
[null,null,"Вартість товару (послуги):",{"$f":"'Калькулятор '!E6","v":333350},"грн."]
[null,null,"Сума на поточні потреби",{"$f":"'Калькулятор '!I6","v":100005.00000000003},"грн."]
[null,null,"Сума авансу:",{"$f":"'Калькулятор '!I7","v":233344.99999999997},"грн."]
[null,null,"Страховий платiж:",{"$f":"'Калькулятор '!K29","v":0},"грн."]
[null,null,"Оцінка предмету застави",{"$f":"'Калькулятор '!E21","v":2000},"грн."]
[null,null,"Послуги нотаріуса",{"$f":"'Калькулятор '!E19","v":1500},"грн."]
[null,null,"Плата за надання кредиту:",{"$f":"'Калькулятор '!I29*(-1)","v":0},"грн."]
[null,null,"Сума договору:",{"$f":"'Калькулятор '!I4","v":100005.00000000003},"грн."]
[null,null,"Страхова сума:",{"$f":"'Калькулятор '!I8","v":333350},"грн."]
[null,"Розмір кредиту визначається, як сума вартості товару (послуги) та сума на поточні потреби (за наявності) за мінусом авансового внеску клієнта"]
[]
[]
[]
[null,"Internet-banking ТАС 24",null,"             Сплачуйте кредитну заборгованість через Інтернет, а також"]
[null,"https://tas24.ua",null,"-             Поповнюйте депозити"]
[null,null,null,"-             Здійснюйте платежі"]
[null,"Реєстрація та надання послуг безкоштовні. Детальніше на сайті системи https://tas24.ua"]
[]
[null,"                     Таблиця орієнтовних щомісячних платежів та подорожчання*:"]
[null,"Строк кредиту","Щомісячний платіж, грн","Орієнтовна сукупна вартість кредиту,всього:",null,"в тому числi"]
[null,"(місяців)",null,"у %","у грн.","Сума плати за надання кредиту, грн.","Сума плати за користування кредитом","Сума плати за обслуговування кредитної заборгованості, грн."]
[null,null,null,null,null,null,"(процентів), грн."]
[null,{"$f":"'Калькулятор '!E7","v":84},{"$f":"('Калькулятор '!D114+'Калькулятор '!I114+'Калькулятор '!K114+'Калькулятор '!L114+'Калькулятор '!#REF!)/'Додаток 21 \"Форма інформування\"'!B29","v":{"$error":"#REF!"}},{"$f":"'Калькулятор '!Q114","v":0.75521808862686135},{"$f":"'Калькулятор '!R114","v":289983.69772555248},{"$f":"D13","v":0},{"$f":"'Калькулятор '!F114","v":42915.297584437452},{"$f":"'Калькулятор '!#REF!+'Калькулятор '!H114+'Калькулятор '!J114+'Калькулятор '!K114+'Калькулятор '!L114+'Калькулятор '!#REF!","v":{"$error":"#REF!"}}]
[]
[null,"Переваги кредитування в рамках даного продукту:",null,null,null,"Вадами кредитування в рамках даного  продукту є подорожчання товару/послуги"]
[null,"·Оптимізація власного бюджету, за рахунок стабільних платежів"]
[null,"·Моментальне отримання товару"]
[null,"·Низька відсоткова ставка"]
[null,"·Зменшення переплати при достроковому погашенні."]
[]
[null,"Умови кредитування:"]
[null,null,"Назва кредитного продукту:",{"$f":"'Калькулятор '!E2","v":0}]
[null,null,"Валюта кредиту:",{"$f":"IF($D$38=Продукты!$B$2,Продукты!B3,IF($D$38=Продукты!$C$2,Продукты!C3,IF($D$38=Продукты!$D$2,Продукты!D3,IF($D$38=Продукты!$E$2,Продукты!E3,IF($D$38=Продукты!$F$2,Продукты!F3,IF($D$38=Продукты!$G$2,Продукты!G3,IF($D$38=Продукты!$H$2,Продукты!H3,IF($D$38=Продукты!$I$2,Продукты!I3,IF($D$38=Продукты!K2,Продукты!K3,IF($D$38=Продукты!L2,Продукты!L3,Продукты!N3))))))))))","v":"Гривня"}]
[null,null,"Форма кредиту:",{"$f":"IF($D$38=Продукты!$B$2,Продукты!B4,IF($D$38=Продукты!$C$2,Продукты!C4,IF($D$38=Продукты!$D$2,Продукты!D4,IF($D$38=Продукты!$E$2,Продукты!E4,IF($D$38=Продукты!$F$2,Продукты!F4,IF($D$38=Продукты!$G$2,Продукты!G4,IF($D$38=Продукты!$H$2,Продукты!H4,IF($D$38=Продукты!$I$2,Продукты!I4,IF($D$38=Продукты!K2,Продукты!K4,IF($D$38=Продукты!L2,Продукты!L4,Продукты!N4))))))))))","v":"Строковий кредит.\nСтроковий кредит - сума грошових коштів, що одноразово надається позичальнику на принципах безумовного повернення, строковості, платності, цільової спрямованості та забезпеченості.\nВиконання зобов’язання за кредитним договором, а саме повернення кредиту, сплата процентів та щомісячних комісій (в разі наявності) здійснюється таким чином:\n- проценти сплачуються щомісячно;\n- основний борг повертається щомісячно рівними частинами або ануїтетними платежами."}]
[null,null,"Мета кредиту:",{"$f":"IF($D$38=Продукты!$B$2,Продукты!B5,IF($D$38=Продукты!$C$2,Продукты!C5,IF($D$38=Продукты!$D$2,Продукты!D5,IF($D$38=Продукты!$E$2,Продукты!E5,IF($D$38=Продукты!$F$2,Продукты!F5,IF($D$38=Продукты!$G$2,Продукты!G5,IF($D$38=Продукты!$H$2,Продукты!H5,IF($D$38=Продукты!$I$2,Продукты!I5,IF($D$38=Продукты!K2,Продукты!K5,IF($D$38=Продукты!L2,Продукты!L5,Продукты!N5))))))))))","v":"Кредит надається безготівково на оплату товарів чи послуг та оплату супутніх послуг, які пов’язані з отриманням, обслуговуванням і погашенням кредиту."}]
[null,null,"Тип процентної ставки",{"$f":"IF($D$38=Продукты!$B$2,Продукты!B6,IF($D$38=Продукты!$C$2,Продукты!C6,IF($D$38=Продукты!$D$2,Продукты!D6,IF($D$38=Продукты!$E$2,Продукты!E6,IF($D$38=Продукты!$F$2,Продукты!F6,IF($D$38=Продукты!$G$2,Продукты!G6,IF($D$38=Продукты!$H$2,Продукты!H6,IF($D$38=Продукты!$I$2,Продукты!I6,IF($D$38=Продукты!K2,Продукты!K6,IF($D$38=Продукты!L2,Продукты!L6,Продукты!N6))))))))))","v":"Фіксована"}]
[null,null,"Плата за користування кредитом (проценти):",{"$f":"IF($D$38=Продукты!$B$2,Продукты!B7,IF($D$38=Продукты!$C$2,Продукты!C7,IF($D$38=Продукты!$D$2,Продукты!D7,IF($D$38=Продукты!$E$2,Продукты!E7,IF($D$38=Продукты!$F$2,Продукты!F7,IF($D$38=Продукты!$G$2,Продукты!G7,IF($D$38=Продукты!$H$2,Продукты!H7,IF($D$38=Продукты!$I$2,Продукты!I7,IF($D$38=Продукты!K2,Продукты!K7,IF($D$38=Продукты!L2,Продукты!L7,Продукты!N7))))))))))","v":"Від 0,001%"}]
[null,null,"Страховий тариф:",{"$f":"IF($D$38=Продукты!$B$2,Продукты!B8,IF($D$38=Продукты!$C$2,Продукты!C8,IF($D$38=Продукты!$D$2,Продукты!D8,IF($D$38=Продукты!$E$2,Продукты!E8,IF($D$38=Продукты!$F$2,Продукты!F8,IF($D$38=Продукты!$G$2,Продукты!G8,IF($D$38=Продукты!$H$2,Продукты!H8,IF($D$38=Продукты!$I$2,Продукты!I8,IF($D$38=Продукты!K2,Продукты!K8,IF($D$38=Продукты!L2,Продукты!L8,Продукты!N8))))))))))","v":"2,99% - страхування життя, від 6,0% - страхування КАСКО, від 400 грн. - страхування ОСАГО"}]
[null,null,"Cтроки фінансування:",{"$f":"IF($D$38=Продукты!$B$2,Продукты!B9,IF($D$38=Продукты!$C$2,Продукты!C9,IF($D$38=Продукты!$D$2,Продукты!D9,IF($D$38=Продукты!$E$2,Продукты!E9,IF($D$38=Продукты!$F$2,Продукты!F9,IF($D$38=Продукты!$G$2,Продукты!G9,IF($D$38=Продукты!$H$2,Продукты!H9,IF($D$38=Продукты!$I$2,Продукты!I9,IF($D$38=Продукты!K2,Продукты!K9,IF($D$38=Продукты!L2,Продукты!L9,Продукты!N9))))))))))","v":"Від 3 міс. до 84 міс."}]
[null,null,"Cуми кредитування:",{"$f":"IF($D$38=Продукты!$B$2,Продукты!B10,IF($D$38=Продукты!$C$2,Продукты!C10,IF($D$38=Продукты!$D$2,Продукты!D10,IF($D$38=Продукты!$E$2,Продукты!E10,IF($D$38=Продукты!$F$2,Продукты!F10,IF($D$38=Продукты!$G$2,Продукты!G10,IF($D$38=Продукты!$H$2,Продукты!H10,IF($D$38=Продукты!$I$2,Продукты!I10,IF($D$38=Продукты!K2,Продукты!K10,IF($D$38=Продукты!L2,Продукты!L10,Продукты!N10))))))))))","v":"Від 50 тис. до 800 тис. грн."}]
[null,null,"Форма забезпечення:",{"$f":"IF($D$38=Продукты!$B$2,Продукты!B11,IF($D$38=Продукты!$C$2,Продукты!C11,IF($D$38=Продукты!$D$2,Продукты!D11,IF($D$38=Продукты!$E$2,Продукты!E11,IF($D$38=Продукты!$F$2,Продукты!F11,IF($D$38=Продукты!$G$2,Продукты!G11,IF($D$38=Продукты!$H$2,Продукты!H11,IF($D$38=Продукты!$I$2,Продукты!I11,IF($D$38=Продукты!K2,Продукты!K11,IF($D$38=Продукты!L2,Продукты!L11,Продукты!N11))))))))))","v":"Застава автомобіля"}]
[null,null,"Необхідність здійснення оцінки майна",{"$f":"IF($D$38=Продукты!$B$2,Продукты!B12,IF($D$38=Продукты!$C$2,Продукты!C12,IF($D$38=Продукты!$D$2,Продукты!D12,IF($D$38=Продукты!$E$2,Продукты!E12,IF($D$38=Продукты!$F$2,Продукты!F12,IF($D$38=Продукты!$G$2,Продукты!G12,IF($D$38=Продукты!$H$2,Продукты!H12,IF($D$38=Продукты!$I$2,Продукты!I12,IF($D$38=Продукты!K2,Продукты!K12,IF($D$38=Продукты!L2,Продукты!L12,Продукты!N12))))))))))","v":"Необхідність оцінки майна відсутня"}]
[null,null,null,{"$f":"IF(D48=\"Заставна вартість нерухомості встановлюється на підставі проведеної незалежної оцінки незалежним оцінювачем \",'Калькулятор '!E20,\" \")","v":" "}]
[null,null,"Варіанти повернення (погашення) кредиту:"]
[null,null,"Форма (варіанти) погашення кредиту:",{"$f":"IF($D$38=Продукты!$B$2,Продукты!B14,IF($D$38=Продукты!$C$2,Продукты!C14,IF($D$38=Продукты!$D$2,Продукты!D14,IF($D$38=Продукты!$E$2,Продукты!E14,IF($D$38=Продукты!$F$2,Продукты!F14,IF($D$38=Продукты!$G$2,Продукты!G14,IF($D$38=Продукты!$H$2,Продукты!H14,IF($D$38=Продукты!$I$2,Продукты!I14,IF($D$38=Продукты!K2,Продукты!K14,IF($D$38=Продукты!L2,Продукты!L14,Продукты!N14))))))))))","v":"Класична форма погашення/щомісячно рівними (ануїтетними) платежами.\nПереваги класичної форми погашення: сума нарахованих процентів зменьшується значно швидше, ніж при ануїтетному платежі.\nНедоліки класичної форми погашення: на початк користування кредитними коштами сума щомісячного платежу буде більшою, ніж при поверненні ануїтетними платежами.\nПереваги ануїтетних платежів: повернення кредиту рівними платежами протягом всього строку кредитування. Зручність для позичальників з незмінною щомісячною сумою доходів. Щомісячний платіж меньший в порівнянні з поверненням кредитних коштів рівними частинами.\nНедоліки ануїтетних платежів: сума нарахованих процентів за весь строк користування кредитними коштами буде більше, ніж при поверненні кредиту рівними частинами."}]
[null,null,"Дострокове погашення:",{"$f":"IF($D$38=Продукты!$B$2,Продукты!B15,IF($D$38=Продукты!$C$2,Продукты!C15,IF($D$38=Продукты!$D$2,Продукты!D15,IF($D$38=Продукты!$E$2,Продукты!E15,IF($D$38=Продукты!$F$2,Продукты!F15,IF($D$38=Продукты!$G$2,Продукты!G15,IF($D$38=Продукты!$H$2,Продукты!H15,IF($D$38=Продукты!$I$2,Продукты!I15,IF($D$38=Продукты!K2,Продукты!K15,IF($D$38=Продукты!L2,Продукты!L15,Продукты!N15))))))))))","v":"Можливе часткове або повне дострокове погашення кредиту на умовах відсутності штрафних санкцій за вчинення таких дій позичальником"}]
[null,null,"Остаточне погашення:",{"$f":"IF($D$38=Продукты!$B$2,Продукты!B16,IF($D$38=Продукты!$C$2,Продукты!C16,IF($D$38=Продукты!$D$2,Продукты!D16,IF($D$38=Продукты!$E$2,Продукты!E16,IF($D$38=Продукты!$F$2,Продукты!F16,IF($D$38=Продукты!$G$2,Продукты!G16,IF($D$38=Продукты!$H$2,Продукты!H16,IF($D$38=Продукты!$I$2,Продукты!I16,IF($D$38=Продукты!K2,Продукты!K16,IF($D$38=Продукты!L2,Продукты!L16,Продукты!N16))))))))))","v":"В кінці строку, вказаного в Кредитному договорі"}]
[null,null,"Податковий режим сплати процентів та державні субсидії",{"$f":"IF($D$38=Продукты!$B$2,Продукты!B17,IF($D$38=Продукты!$C$2,Продукты!C17,IF($D$38=Продукты!$D$2,Продукты!D17,IF($D$38=Продукты!$E$2,Продукты!E17,IF($D$38=Продукты!$F$2,Продукты!F17,IF($D$38=Продукты!$G$2,Продукты!G17,IF($D$38=Продукты!$H$2,Продукты!H17,IF($D$38=Продукты!$I$2,Продукты!I17,IF($D$38=Продукты!K2,Продукты!K17,IF($D$38=Продукты!L2,Продукты!L17,Продукты!N17))))))))))","v":"По даному кредитному продукту податкові знижки відсутні, державні субсидії не передбачені"}]
[null,null,"Супутні послуги:"]
[null,null,"Плата за обслуговування кредитної заборгованості:",{"$f":"IF($D$38=Продукты!$B$2,Продукты!B19,IF($D$38=Продукты!$C$2,Продукты!C19,IF($D$38=Продукты!$D$2,Продукты!D19,IF($D$38=Продукты!$E$2,Продукты!E19,IF($D$38=Продукты!$F$2,Продукты!F19,IF($D$38=Продукты!$G$2,Продукты!G19,IF($D$38=Продукты!$H$2,Продукты!H19,IF($D$38=Продукты!$I$2,Продукты!I19,IF($D$38=Продукты!K2,Продукты!K19,IF($D$38=Продукты!L2,Продукты!L19,Продукты!N19))))))))))","v":"1,4% від суми кредиту"}]
[null,null,"Плата за надання кредиту:",{"$f":"IF($D$38=Продукты!$B$2,Продукты!B20,IF($D$38=Продукты!$C$2,Продукты!C20,IF($D$38=Продукты!$D$2,Продукты!D20,IF($D$38=Продукты!$E$2,Продукты!E20,IF($D$38=Продукты!$F$2,Продукты!F20,IF($D$38=Продукты!$G$2,Продукты!G20,IF($D$38=Продукты!$H$2,Продукты!H20,IF($D$38=Продукты!$I$2,Продукты!I20,IF($D$38=Продукты!K2,Продукты!K20,IF($D$38=Продукты!L2,Продукты!L20,Продукты!N20))))))))))","v":"від 0 до 2% від суми кредиту"}]
[]
[null,"Обов'язкові документи:"]
[null,"1. Паспорт громадянина України"]
[null,"2. Довідка про присвоєння ідентифікаційного номера платника податків (картка платника податків)"]
[null,"В окремих випадках Банк залишає за собою право вимагати інші документи, необхідні для визначення платоспроможності позичальника та які є необхідними для надання споживчого кредиту. "]
[]
[null,"З підписанням цієї Інформації (довідки) про кредит позичальник засвідчує, що перед укладанням Кредитного договору він ознайомлений з інформацією про  умови кредитування, а також повідомлений про орієнтовну сукупну вартість кредиту і ці умови є зрозумілими"]
[null,"_________________________________",null,null,"______________________"]
[null,null,"Позичальник","Уповноважена особа АТ \"ТАСКОМБАНК\""]
[null,"Ця Інформація (довідка) про кредит у разі укладання Кредитного договору №____________________ від______________20___р.** вважається (і) його невід’ємною частиною та (іі) детальним розписом сукупної вартості кредиту з урахуванням процентної ставки за ним, "]
[null,"п.3.1. та 3.4. Постанови Правління Національного банку України від 10.05.07р. №168 «Про затвердження Правил надання банками України інформації споживачу про умови кредитування та сукупну вартість кредиту»."]
[null,"_________________________________",null,null,"______________________"]
[null,null,"Позичальник","Уповноважена особа АТ \"ТАСКОМБАНК\""]
[null,"_ _ _ _ _ _ _ _ _ _ _ _ _ _ _"]
[null,"*Таблиця орієнтованих щомісячних платежів та подорожчання відображає суму щомісячного погашення кредиту в залежності від вибраного Вами строку кредитування. Таблиця НЕ Є графіком погашення. Графік погашення та чітка сума щомісячного платежу зазначені у Кредитному договорі"]
[null,"**У разі фактичного укладання Кредитного договору його номер та дата вписується уповноваженою особою АТ \"ТАСКОМБАНК\", на підтвердження чого Позичальник та уповноважена особа АТ \"ТАСКОМБАНК\" ставлять нижче свої підписи. "]
[null,"Один екземпляр Інформації про умови кредитування та орієнтовну сукупну вартість кредиту отримав(ла)."]
[]
[null,"_______________________",null,"____________________",null,"________________________"]
[null,"дата",null,"підпис",null,"ініціали та прізвище фізичної особи"]
[]
[]
[null,"_______________________",null,"____________________",null,"________________________"]
[null,"дата",null,"підпис",null,"ініціали та прізвище виконавця"]

{"sheet":"Продукты","index":4,"n_rows":23,"n_cols":14,"rows_kept":23,"cut":false,"hidden":true,"merged":[]}
[]
["Назва кредитного продукту","Кредит «Вперед к мечте»","Кредит на покупку недвижимости","Кредит под залог недвижимости","Кредит под депозит","Кредит на купівлю автомобіля, що був у використанні","Овердрафт для держателей зарплатных карт","Кредитная карта VIP","Овердрафт GOLD","Кредит на навчання","Кеш-кредит \"Зручна готівка\" із послугою страхування","Лізинг нерухомості","Кредит на купівлю нового легкового автомобіля","Кредит \"Автосалон\""]
["Валюта кредиту","Гривня","Гривня","Гривня","Гривня/Долар США/Євро, відповідає валюті депозиту","Гривня","Гривня","Гривня","Гривня","Гривня","Гривня","Гривня","Гривня","Гривня"]
["Форма кредиту","Строковий кредит.\nСтроковий кредит - сума грошових коштів, що одноразово надається позичальнику на принципах безумовного повернення, строковості, платності, цільової спрямованості та забезпеченості.\nВиконання зобов’язання за кредитним договором, а саме повернення кредиту, сплата процентів та щомісячних комісій (в разі наявності) здійснюється таким чином:\n- проценти сплачуються щомісячно;\n- основний борг повертається щомісячно рівними частинами або ануїтетними платежами.","Строковий кредит.\nСтроковий кредит - сума грошових коштів, що одноразово надається позичальнику на принципах безумовного повернення, строковості, платності, цільової спрямованості та забезпеченості.\nВиконання зобов’язання за кредитним договором, а саме повернення кредиту, сплата процентів та щомісячних комісій (в разі наявності) здійснюється таким чином:\n- проценти сплачуються щомісячно;\n- основний борг повертається щомісячно рівними частинами або ануїтетними платежами.","Строковий кредит/кредитна лінія\nСтроковий кредит - сума грошових коштів, що одноразово надається позичальнику на принципах безумовного повернення, строковості, платності, цільової спрямованості та забезпеченості.\nКредитна лінія – кредитна угода, відповідно до якої протягом передбаченого договором терміну банк виділяє позичальнику кредит у межах узгодженої суми (ліміту кредитування) на умовах, що відрізняються від умов одноразового надання кредиту.","Строковий кредит/кредитна лінія\nСтроковий кредит - сума грошових коштів, що одноразово надається позичальнику на принципах безумовного повернення, строковості, платності, цільової спрямованості та забезпеченості.\nКредитна лінія – кредитна угода, відповідно до якої протягом передбаченого договором терміну банк виділяє позичальнику кредит у межах узгодженої суми (ліміту кредитування) на умовах, що відрізняються від умов одноразового надання кредиту.","Строковий кредит.\nСтроковий кредит - сума грошових коштів, що одноразово надається позичальнику на принципах безумовного повернення, строковості, платності, цільової спрямованості та забезпеченості.\nВиконання зобов’язання за кредитним договором, а саме повернення кредиту, сплата процентів та щомісячних комісій (в разі наявності) здійснюється таким чином:\n- проценти сплачуються щомісячно;\n- основний борг повертається щомісячно рівними частинами або ануїтетними платежами.","Кредит у формі овердрафту","Кредит у формі овердрафту","Кредит у формі овердрафту","Картковий кредит","Кредит готівкою","Лізинг \nЛізинг — підприємницька діяльність, спрямована на інвестування власних чи залучених фінансових коштів, яка полягає в наданні лізингодавцем у виключне користування на визначений строк лізингоодержувачу майна.","Строковий кредит.\nСтроковий кредит - сума грошових коштів, що одноразово надається позичальнику на принципах безумовного повернення, строковості, платності, цільової спрямованості та забезпеченості.\nВиконання зобов’язання за кредитним договором, а саме повернення кредиту, сплата процентів та щомісячних комісій (в разі наявності) здійснюється таким чином:\n- проценти сплачуються щомісячно;\n- основний борг повертається щомісячно рівними частинами або ануїтетними платежами.","Строковий кредит.\nСтроковий кредит - сума грошових коштів, що одноразово надається позичальнику на принципах безумовного повернення, строковості, платності, цільової спрямованості та забезпеченості.\nВиконання зобов’язання за кредитним договором, а саме повернення кредиту, сплата процентів та щомісячних комісій (в разі наявності) здійснюється таким чином:\n- проценти сплачуються щомісячно;\n- основний борг повертається щомісячно рівними частинами або ануїтетними платежами."]
["Мета кредиту","Кредит надається безготівково на оплату товарів чи послуг та оплату супутніх послуг, які пов’язані з отриманням, обслуговуванням і погашенням кредиту.","Кредит надається безготівково на оплату товарів чи послуг та оплату супутніх послуг, які пов’язані з отриманням, обслуговуванням і погашенням кредиту.","Кредит надається безготівково на оплату товарів чи послуг та оплату супутніх послуг, які пов’язані з отриманням, обслуговуванням і погашенням кредиту.","Кредит надається безготівково на оплату товарів чи послуг та оплату супутніх послуг, які пов’язані з отриманням, обслуговуванням і погашенням кредиту.","Кредит надається  на придбання нового автомобіля та на споживчі потреби","Кредит надається безготівково на оплату товарів чи послуг та оплату супутніх послуг, які пов’язані з отриманням, обслуговуванням і погашенням кредиту.","Кредит надається безготівково на оплату товарів чи послуг та оплату супутніх послуг, які пов’язані з отриманням, обслуговуванням і погашенням кредиту.","Кредит надається безготівково на оплату товарів чи послуг та оплату супутніх послуг, які пов’язані з отриманням, обслуговуванням і погашенням кредиту.","Кредит надається безготівково на оплату товарів чи послуг та оплату супутніх послуг, які пов’язані з отриманням, обслуговуванням і погашенням кредиту.","Споживчі потреби","Фінансування надається безготівково на оплату товарів чи послуг та оплату супутніх послуг, які пов’язані з отриманням, обслуговуванням і погашенням фінансування.","Кредит надається безготівково на оплату товарів чи послуг та оплату супутніх послуг, які пов’язані з отриманням, обслуговуванням і погашенням кредиту.","Кредит надається безготівково на оплату товарів чи послуг та оплату супутніх послуг, які пов’язані з отриманням, обслуговуванням і погашенням кредиту."]
["Тип процентної ставки","Фіксована","Фіксована","Фіксована","Фіксована","Фіксована","Фіксована","Фіксована","Фіксована","Фіксована","Фіксована","Фіксована","Фіксована","Фіксована"]
["Плата за користування кредитом","Від 14% річних","24% річних - ануїтетна схема погашення; 24% - стандартна схема погашення","24% річних - ануїтетна схема погашення; 24% - стандартна схема погашення","Ставка по депозиту + 2,7%","Від 16,99%","36% річних","0,001% річних","35% річних","36% річних","19,99% річних","24% річних","Від 19,9%","Від 0,001%"]
["Страховий тариф","3% від залишку заборгованості по кредиту щорічно","0,5% - страхування життя, 0,3% - страхування предмету застави","0,5% - страхування життя, 0,3% - страхування предмету застави","-","2,99% - страхування життя, від 5,99% - страхування КАСКО, від 400 грн. - страхування ОСАГО","-","-","-","-","6% на рік, оплачується при оформленні кредиту одразу на весь строк кредиту шляхом перерахування на рахунок страхової компанії з Позичковго рахунку","1% - страхування життя, 0,3% - страхування предмету лізингу","2,99% - страхування життя, від 6,0% - страхування КАСКО, від 400 грн. - страхування ОСАГО","2,99% - страхування життя, від 6,0% - страхування КАСКО, від 400 грн. - страхування ОСАГО"]
["Строки кредитування","від 12 до 60 місяців","До 10 років","До 10 років","Строк депозиту - 32 дні","Від 3 міс. до 84 міс.","12 місяців","12 місяців","12 місяців","5 місяців","12/24/36 місяців","До 10 років","Від 3 міс. до 84 міс.","Від 3 міс. до 84 міс."]
["Суми кредитування","від 100 до 400 тис. грн.","Від 25 тис. до 2 млн. грн.","Від 25 тис. до 2 млн. грн., але не більше 50% вартості житла, яке надається в заставу",null,"Від 50 тис. до 800 тис. грн.","Від 500 грн. до 15 тис. грн. (але не більше 50% заробітної платні)","До 500 тис. грн.","До 50 тис. грн.","До 20 тис. грн.","Від 2 000 до 50 000 грн. з врахуванням суми страхового платежу","Від 25 тис. до 2 млн. грн.","Від 50 тис. до 800 тис. грн.","Від 50 тис. до 800 тис. грн."]
["Форма забезпечення","Застава автомобіля","Придбана нерухомість","Власна нерухомість","Майнові права на депозит","Застава автомобіля, порука фізичної (-их) особи (-б)","Забезпечення відсутнє","Забезпечення відсутнє","Забезпечення відсутнє","Забезпечення відсутнє","Забезпечення відсутнє","Придбана нерухомість","Застава автомобіля","Застава автомобіля"]
["Необхідність здійснення оцінки майна","Необхідність оцінки майна відсутня","Присутня необхідність проведення оцінки майна за рахунок клієнта","Присутня необхідність проведення оцінки майна за рахунок клієнта","Необхідність оцінки майна відсутня","Ні","Необхідність оцінки майна відсутня","Необхідність оцінки майна відсутня","Необхідність оцінки майна відсутня","Необхідність оцінки майна відсутня","Необхідність оцінки майна відсутня","Присутня необхідність проведення оцінки майна за рахунок клієнта","Необхідність оцінки майна відсутня","Необхідність оцінки майна відсутня"]
["Варіанти повернення кредиту:"]
["Форма погашення кредиту","Щомісячно рівними (аннуїтетними) платежами.\nПереваги ануїтетних платежів: повернення кредиту рівними платежами протягом всього строку кредитування. Зручність для позичальників з незмінною щомісячною сумою доходів. Щомісячний платіж меньший в порівнянні з поверненням кредитних коштів рівними частинами.\nНедоліки ануїтетних платежів: сума нарахованих процентів за весь строк користування кредитними коштами буде більше, ніж при поверненні кредиту рівними частинами.","Класична форма погашення/щомісячно рівними (ануїтетними) платежами.\nПереваги класичної форми погашення: сума нарахованих процентів зменьшується значно швидше, ніж при ануїтетному платежі.\nНедоліки класичної форми погашення: на початк користування кредитними коштами сума щомісячного платежу буде більшою, ніж при поверненні ануїтетними платежами.\nПереваги ануїтетних платежів: повернення кредиту рівними платежами протягом всього строку кредитування. Зручність для позичальників з незмінною щомісячною сумою доходів. Щомісячний платіж меньший в порівнянні з поверненням кредитних коштів рівними частинами.\nНедоліки ануїтетних платежів: сума нарахованих процентів за весь строк користування кредитними коштами буде більше, ніж при поверненні кредиту рівними частинами.","Класична форма погашення/щомісячно рівними (ануїтетними) платежами.\nПереваги класичної форми погашення: сума нарахованих процентів зменьшується значно швидше, ніж при ануїтетному платежі.\nНедоліки класичної форми погашення: на початк користування кредитними коштами сума щомісячного платежу буде більшою, ніж при поверненні ануїтетними платежами.\nПереваги ануїтетних платежів: повернення кредиту рівними платежами протягом всього строку кредитування. Зручність для позичальників з незмінною щомісячною сумою доходів. Щомісячний платіж меньший в порівнянні з поверненням кредитних коштів рівними частинами.\nНедоліки ануїтетних платежів: сума нарахованих процентів за весь строк користування кредитними коштами буде більше, ніж при поверненні кредиту рівними частинами.","Класична форма погашення/щомісячно рівними (ануїтетними) платежами.\nПереваги класичної форми погашення: сума нарахованих процентів зменьшується значно швидше, ніж при ануїтетному платежі.\nНедоліки класичної форми погашення: на початк користування кредитними коштами сума щомісячного платежу буде більшою, ніж при поверненні ануїтетними платежами.\nПереваги ануїтетних платежів: повернення кредиту рівними платежами протягом всього строку кредитування. Зручність для позичальників з незмінною щомісячною сумою доходів. Щомісячний платіж меньший в порівнянні з поверненням кредитних коштів рівними частинами.\nНедоліки ануїтетних платежів: сума нарахованих процентів за весь строк користування кредитними коштами буде більше, ніж при поверненні кредиту рівними частинами.","Класична форма погашення/щомісячно рівними (ануїтетними) платежами.\nПереваги класичної форми погашення: сума нарахованих процентів зменьшується значно швидше, ніж при ануїтетному платежі.\nНедоліки класичної форми погашення: на початк користування кредитними коштами сума щомісячного платежу буде більшою, ніж при поверненні ануїтетними платежами.\nПереваги ануїтетних платежів: повернення кредиту рівними платежами протягом всього строку кредитування. Зручність для позичальників з незмінною щомісячною сумою доходів. Щомісячний платіж меньший в порівнянні з поверненням кредитних коштів рівними частинами.\nНедоліки ануїтетних платежів: сума нарахованих процентів за весь строк користування кредитними коштами буде більше, ніж при поверненні кредиту рівними частинами.","Щомісячний обов'язковий платіж","Щомісячний обов'язковий платіж","Щомісячний обов'язковий платіж","Щомісячний обов'язковий платіж","Щомісячний обов'язковий платіж (ануїтетний)","Класична форма погашення/щомісячно рівними (ануїтетними) платежами.\nПереваги класичної форми погашення: сума нарахованих процентів зменьшується значно швидше, ніж при ануїтетному платежі.\nНедоліки класичної форми погашення: на початк користування кредитними коштами сума щомісячного платежу буде більшою, ніж при поверненні ануїтетними платежами.\nПереваги ануїтетних платежів: повернення кредиту рівними платежами протягом всього строку кредитування. Зручність для позичальників з незмінною щомісячною сумою доходів. Щомісячний платіж меньший в порівнянні з поверненням кредитних коштів рівними частинами.\nНедоліки ануїтетних платежів: сума нарахованих процентів за весь строк користування кредитними коштами буде більше, ніж при поверненні кредиту рівними частинами.","Класична форма погашення/щомісячно рівними (ануїтетними) платежами.\nПереваги класичної форми погашення: сума нарахованих процентів зменьшується значно швидше, ніж при ануїтетному платежі.\nНедоліки класичної форми погашення: на початк користування кредитними коштами сума щомісячного платежу буде більшою, ніж при поверненні ануїтетними платежами.\nПереваги ануїтетних платежів: повернення кредиту рівними платежами протягом всього строку кредитування. Зручність для позичальників з незмінною щомісячною сумою доходів. Щомісячний платіж меньший в порівнянні з поверненням кредитних коштів рівними частинами.\nНедоліки ануїтетних платежів: сума нарахованих процентів за весь строк користування кредитними коштами буде більше, ніж при поверненні кредиту рівними частинами.","Класична форма погашення/щомісячно рівними (ануїтетними) платежами.\nПереваги класичної форми погашення: сума нарахованих процентів зменьшується значно швидше, ніж при ануїтетному платежі.\nНедоліки класичної форми погашення: на початк користування кредитними коштами сума щомісячного платежу буде більшою, ніж при поверненні ануїтетними платежами.\nПереваги ануїтетних платежів: повернення кредиту рівними платежами протягом всього строку кредитування. Зручність для позичальників з незмінною щомісячною сумою доходів. Щомісячний платіж меньший в порівнянні з поверненням кредитних коштів рівними частинами.\nНедоліки ануїтетних платежів: сума нарахованих процентів за весь строк користування кредитними коштами буде більше, ніж при поверненні кредиту рівними частинами."]
["Дострокове погашення","Можливе часткове або повне дострокове погашення кредиту на умовах відсутності штрафних санкцій за вчинення таких дій позичальником.","Можливе часткове або повне дострокове погашення кредиту на умовах відсутності штрафних санкцій за вчинення таких дій позичальником","Можливе часткове або повне дострокове погашення кредиту на умовах відсутності штрафних санкцій за вчинення таких дій позичальником","Можливе часткове або повне дострокове погашення кредиту на умовах відсутності штрафних санкцій за вчинення таких дій позичальником","Можливе часткове або повне дострокове погашення кредиту на умовах відсутності штрафних санкцій за вчинення таких дій позичальником","Можливе часткове або повне дострокове погашення кредиту на умовах відсутності штрафних санкцій за вчинення таких дій позичальником","Можливе часткове або повне дострокове погашення кредиту на умовах відсутності штрафних санкцій за вчинення таких дій позичальником","Можливе часткове або повне дострокове погашення кредиту на умовах відсутності штрафних санкцій за вчинення таких дій позичальником","Можливе часткове або повне дострокове погашення кредиту на умовах відсутності штрафних санкцій за вчинення таких дій позичальником","Можливе часткове або повне дострокове погашення кредиту на умовах відсутності штрафних санкцій за вчинення таких дій позичальником","Можливе часткове або повне дострокове погашення кредиту на умовах відсутності штрафних санкцій за вчинення таких дій лізингоодержувача","Можливе часткове або повне дострокове погашення кредиту на умовах відсутності штрафних санкцій за вчинення таких дій позичальником","Можливе часткове або повне дострокове погашення кредиту на умовах відсутності штрафних санкцій за вчинення таких дій позичальником"]
["Остаточне погашення","В кінці строку, вказаного в Кредитному договорі","В кінці строку, вказаного в Кредитному договорі","В кінці строку, вказаного в Кредитному договорі","В кінці строку, вказаного в Кредитному договорі","В кінці строку, вказаного в Кредитному договорі","В кінці строку, вказаного в Кредитному договорі","В кінці строку, вказаного в Кредитному договорі","В кінці строку, вказаного в Кредитному договорі","В кінці строку, вказаного в Кредитному договорі","В кінці строку, вказаного в Кредитному договорі в Графіку платежів","В кінці строку, вказаного в Договорі лізингу","В кінці строку, вказаного в Кредитному договорі","В кінці строку, вказаного в Кредитному договорі"]
["Податковий режим сплати процентів та державні субсидії","По даному кредитному продукту податкові знижки відсутні, державні субсидії не передбачені","По даному кредитному продукту податкові знижки відсутні, державні субсидії не передбачені","По даному кредитному продукту податкові знижки відсутні, державні субсидії не передбачені","По даному кредитному продукту податкові знижки відсутні, державні субсидії не передбачені","По даному кредитному продукту податкові знижки відсутні, державні субсидії не передбачені","По даному кредитному продукту податкові знижки відсутні, державні субсидії не передбачені","По даному кредитному продукту податкові знижки відсутні, державні субсидії не передбачені","По даному кредитному продукту податкові знижки відсутні, державні субсидії не передбачені","По даному кредитному продукту податкові знижки відсутні, державні субсидії не передбачені","По даному кредитному продукту податкові знижки відсутні, державні субсидії не передбачені","По даному кредитному продукту податкові знижки відсутні, державні субсидії не передбачені","По даному кредитному продукту податкові знижки відсутні, державні субсидії не передбачені","По даному кредитному продукту податкові знижки відсутні, державні субсидії не передбачені"]
["Супутні послуги:"]
["Плата за обслуговування кредитної заборгованості","Комісія відсутня","Комісія відсутня","Комісія відсутня","Комісія відсутня","Комісія відсутня","Комісія відсутня","3% від суми заборгованості на кінець місяця","Комісія відсутня","Комісія відсутня","2,95% від суми кредиту","Комісія відсутня","Комісія відсутня","1,4% від суми кредиту"]
["Плата за надання кредиту","3% від суми кредиту","1,5% від суми кредиту","від 1,5% від суми кредиту","0,5% від суми кредиту","від 0 до 2% від суми кредиту","Від 20 грн. до 300 грн. в залежності від суми кредитного ліміту","Комісія відсутня","Комісія відсутня","Комісія відсутня","Комісія відсутня","Не меньше 1,7% від суми фінансування","від 0 до 2% від суми кредиту","від 0 до 2% від суми кредиту"]
["послуги нотаріуса","Так","Так","Так","Ні","Так, перелік нотаріусів зазначено на сайті: https://new.tascombank.ua/docs \n",null,null,null,null,null,"Так","Так","Так"]
["послуги оцінювача","Ні","Так\nЧП \"Актив Плюс\", ВАТ \"АКО-Експерт\", ПП \"Вітал-Профі\", ВАТ \"Кредитне Брокерське Агенство\", ВАТ \"Вектор оцінки\"","Так\nЧП \"Актив Плюс\", ВАТ \"АКО-Експерт\", ПП \"Вітал-Профі\", ВАТ \"Кредитне Брокерське Агенство\", ВАТ \"Вектор оцінки\"","Ні","Ні\n","Ні","Ні","Ні","Ні","Ні","Так\nЧП \"Актив Плюс\", ВАТ \"АКО-Експерт\", ПП \"Вітал-Профі\", ВАТ \"Кредитне Брокерське Агенство\", ВАТ \"Вектор оцінки\"","Ні","Ні"]
["штрафи","Штраф – встановлюється в твердо визначеній грошовій сумі або у процентах від суми невиконаного або неналежного виконаного зобов’язання  і стягується одноразово. \nУ випадку надання завідомо недостовірної інформації, яка стосується умов цього Кредитного договору та/або процесу його виконання, Банк має право нарахувати та стягнути, а Позичальник сплачує Банку штраф у розмірі 5,0 % від суми кредиту.\nУ разі ненадання інформації, щодо фінансового та майнового стану, Банк має право нарахувати та стягнути, а Позичальник сплачує Банку штраф у розмірі 5,0 % від суми наданого кредиту. У разі невиконання умов щодо страхування життя та/або об’єкту застави процентна ставка збільшується на 10%.","Штраф – встановлюється в твердо визначеній грошовій сумі або у процентах від суми невиконаного або неналежного виконаного зобов’язання  і стягується одноразово.\nУ випадку надання завідомо недостовірної інформації, яка стосується умов Кредитного договору та/або процесу його виконання, Банк має право нарахувати та стягнути, а Позичальник сплачує Банку штраф у розмірі 5,0 % (п’ять відсотків) від суми кредиту.\nУ разі ненадання інформації,  щодо фінансового та майнового стану, інформацію, що стосується судових справ, зміни своїх персональних даних, Позичальник зобов'язаний сплатити штраф у розмірі 1,0 % (одного відсотка) від суми наданого кредиту, вказаної у п. 2.1. Кредитного договору.\nУ разі невиконання умов щодо страхування життя та/або об’єкту застави процентна ставка збільшується на 10%.","Штраф – встановлюється в твердо визначеній грошовій сумі або у процентах від суми невиконаного або неналежного виконаного зобов’язання  і стягується одноразово.\nУ випадку надання завідомо недостовірної інформації, яка стосується умов Кредитного договору та/або процесу його виконання, Банк має право нарахувати та стягнути, а Позичальник сплачує Банку штраф у розмірі 5,0 % (п’ять відсотків) від суми кредиту.\nУ разі ненадання інформації,  щодо фінансового та майнового стану, інформацію, що стосується судових справ, зміни своїх персональних даних, Позичальник зобов'язаний сплатити штраф у розмірі 1,0 % (одного відсотка) від суми наданого кредиту, вказаної у п. 2.1. Кредитного договору.\nУ разі невиконання умов щодо страхування життя та/або об’єкту застави процентна ставка збільшується на 10%.","Штраф – встановлюється в твердо визначеній грошовій сумі або у процентах від суми невиконаного або неналежного виконаного зобов’язання  і стягується одноразово.\nУ випадку надання завідомо недостовірної інформації, яка стосується умов Кредитного договору та/або процесу його виконання, Банк має право нарахувати та стягнути, а Позичальник сплачує Банку штраф у розмірі 5,0 % від суми кредиту."," - 5% від суми кредиту  за надання Позичальником завідомо недостовірної інформації, яка стосується умов  Кредитного договору та/або процесу його виконання.                                                                                                                                                - 5% від суми кредиту  за ненадання Позичальником інформації відносно зміни паспортних даних, місця роботи, контактних номерів телефонів, зміни у складі сім\"ї, а  також, інформації, що стосується судових спарав, стороною яких є Позичальник.                                                                                                                           - 5% від суми кредиту за ненадання  Позичальником інформації та документів щодо зміни  його фінансового та майнового стану.                                                                                                                                                            -  5% від суми кредиту за ненадання Позичальником для огляду трансортного засобу, що є Предметом застави.  ","овердрафт для держателей зарплатных карт"," ",null,null,null,"Штраф – встановлюється в твердо визначеній грошовій сумі або у процентах від суми невиконаного або неналежного виконаного зобов’язання  і стягується одноразово.\nУ випадку надання завідомо недостовірної інформації, яка стосується умов Кредитного договору та/або процесу його виконання, Банк має право нарахувати та стягнути, а Позичальник сплачує Банку штраф у розмірі 5,0 % (п’ять відсотків) від суми кредиту.\nУ разі ненадання інформації,  щодо фінансового та майнового стану, інформацію, що стосується судових справ, зміни своїх персональних даних, Позичальник зобов'язаний сплатити штраф у розмірі 1,0 % (одного відсотка) від суми наданого кредиту, вказаної у п. 2.1. Кредитного договору.\nУ разі невиконання умов щодо страхування життя та/або об’єкту застави процентна ставка збільшується на 10%.","Штраф – встановлюється в твердо визначеній грошовій сумі або у процентах від суми невиконаного або неналежного виконаного зобов’язання  і стягується одноразово. \nУ випадку надання завідомо недостовірної інформації, яка стосується умов цього Кредитного договору та/або процесу його виконання, Банк має право нарахувати та стягнути, а Позичальник сплачує Банку штраф у розмірі 5,0 % від суми кредиту.\nУ разі ненадання інформації, щодо фінансового та майнового стану, Банк має право нарахувати та стягнути, а Позичальник сплачує Банку штраф у розмірі 5,0 % від суми наданого кредиту. У разі невиконання умов щодо страхування життя та/або об’єкту застави процентна ставка збільшується на 10%.","Штраф – встановлюється в твердо визначеній грошовій сумі або у процентах від суми невиконаного або неналежного виконаного зобов’язання  і стягується одноразово. \nУ випадку надання завідомо недостовірної інформації, яка стосується умов цього Кредитного договору та/або процесу його виконання, Банк має право нарахувати та стягнути, а Позичальник сплачує Банку штраф у розмірі 5,0 % від суми кредиту.\nУ разі ненадання інформації, щодо фінансового та майнового стану, Банк має право нарахувати та стягнути, а Позичальник сплачує Банку штраф у розмірі 5,0 % від суми наданого кредиту. У разі невиконання умов щодо страхування життя та/або об’єкту застави процентна ставка збільшується на 10%."]

{"sheet":"Паспорт кредиту","index":5,"n_rows":89,"n_cols":2,"rows_kept":89,"cut":false,"hidden":true,"merged":[[87,0,87,1],[88,0,88,1],[66,1,67,1],[8,0,9,0],[11,0,13,0],[16,0,16,1],[22,0,22,1],[31,0,31,1],[56,0,56,1],[42,0,43,0],[17,1,21,1],[79,0,79,1],[84,0,84,1],[85,0,85,1],[36,0,37,0],[38,0,39,0],[1,0,1,1],[2,0,2,1],[3,0,3,1],[5,0,5,1],[6,0,7,0],[4,0,4,1],[40,0,41,0],[58,0,58,1],[63,0,63,1],[65,0,65,1],[46,0,47,0],[75,0,75,1],[76,0,76,1],[78,0,78,1],[57,0,57,1],[48,0,49,0],[66,0,67,0],[74,0,74,1]]}
[null,"Версія 010921.1"]
["Паспорт споживчого кредиту за продуктом \"Кредит на купівлю нового автомобіля за програмою \"Авто Драйв\""]
["Інформація щодо умов кредитування Банку згідно вимог Закону України \"Про споживче кредитування\"№1734-VIII від 15.11.16 р."]
["(Стандартизована форма)"]
[{"$f":"'Калькулятор '!L23","v":"Ануїтетна схема"}]
["1. Інформація та контактні дані кредитодавця"]
["Найменування кредитодавця та його структурного або відокремленого підрозділу, в якому поширюється інформація","АТ «ТАСКОМБАНК»"]
[null,"_________________(вказати назву відділення)"]
["Місцезнаходження кредитодавця та адреса структурного або відокремленого підрозділу, в якому поширюється інформація","01032, м. Київ, вул. Симона Петлюри, 30"]
[null,"_________________(вказати адресу відділення)"]
["Ліцензія/Свідоцтво","Банківська ліцензія №84 від 25.10.2011 р."]
["Номер контактного телефону","Інформаційний центр: "]
[null,"0 (800) 503 580;  (044) 393 -25 -90"]
[null,"факс: +38 (044) 393-25-80"]
["Адреса електронної пошти","info@tascombank.com.ua"]
["Адреса офіційного веб-сайту","www.tascombank.ua"]
["2. Інформація та контактні дані кредитного посередника*"]
["Найменування кредитного посередника","*Інформація не заповнюється у зв'язку з відсутністю кредитного посередника при наданні Банком кредиту на купівлю транспортного засобу"]
["Місцезнаходження"]
["Номер контактного телефону"]
["Адреса електронної пошти"]
["Адреса офіційного веб-сайту*"]
["3. Основні умови кредитування з урахуванням побажань споживача"]
["Тип кредиту",{"$f":"'Калькулятор '!F2","v":"Кредит"}]
["Сума / ліміт кредиту, грн",{"$f":"'Калькулятор '!I4","v":100005.00000000003}]
["Строк кредитування, міс.",{"$f":"'Калькулятор '!E7","v":84}]
["Мета отримання кредиту",{"$f":"Продукты!F5","v":"Кредит надається  на придбання нового автомобіля та на споживчі потреби"}]
["Спосіб та строк надання кредиту","Безготівковим шляхом, протягом одного банківського дня з моменту виконання споживачем умов надання кредиту згідно кредитного договору "]
["Можливі види (форми) забезпечення кредиту",{"$f":"IF('Додаток 21 \"Форма інформування\"'!D38=Продукты!$B$2,Продукты!B11,IF('Додаток 21 \"Форма інформування\"'!D38=Продукты!$C$2,Продукты!C11,IF('Додаток 21 \"Форма інформування\"'!D38=Продукты!$D$2,Продукты!D11,IF('Додаток 21 \"Форма інформування\"'!D38=Продукты!$E$2,Продукты!E11,IF('Додаток 21 \"Форма інформування\"'!D38=Продукты!$F$2,Продукты!F11,IF('Додаток 21 \"Форма інформування\"'!D38=Продукты!$G$2,Продукты!G11,IF('Додаток 21 \"Форма інформування\"'!D38=Продукты!$H$2,Продукты!H11,IF('Додаток 21 \"Форма інформування\"'!D38=Продукты!$I$2,Продукты!I11,IF('Додаток 21 \"Форма інформування\"'!D38=Продукты!K2,Продукты!K11,IF('Додаток 21 \"Форма інформування\"'!D38=Продукты!L2,Продукты!L11,Продукты!N11))))))))))","v":"Застава автомобіля"}]
["Необхідність проведення оцінки забезпечення кредиту",{"$f":"IF('Додаток 21 \"Форма інформування\"'!D38=Продукты!$B$2,Продукты!B12,IF('Додаток 21 \"Форма інформування\"'!D38=Продукты!$C$2,Продукты!C12,IF('Додаток 21 \"Форма інформування\"'!D38=Продукты!$D$2,Продукты!D12,IF('Додаток 21 \"Форма інформування\"'!D38=Продукты!$E$2,Продукты!E12,IF('Додаток 21 \"Форма інформування\"'!D38=Продукты!$F$2,Продукты!F12,IF('Додаток 21 \"Форма інформування\"'!D38=Продукты!$G$2,Продукты!G12,IF('Додаток 21 \"Форма інформування\"'!D38=Продукты!$H$2,Продукты!H12,IF('Додаток 21 \"Форма інформування\"'!D38=Продукты!$I$2,Продукты!I12,IF('Додаток 21 \"Форма інформування\"'!D38=Продукты!K2,Продукты!K12,IF('Додаток 21 \"Форма інформування\"'!D38=Продукты!L2,Продукты!L12,Продукты!N12))))))))))","v":"Необхідність оцінки майна відсутня"}]
["Мінімальний розмір власного платежу (фінансової участі) споживача за умови отримання кредиту на придбання товару/роботи/послуги, %",{"$f":"'Калькулятор '!K7","v":0.7}]
["4. Інформація щодо реальної річної процентної ставки та загальної вартості кредиту для споживача"]
["Процентна ставка, відсотків річних",{"$f":"'Калькулятор '!E10","v":0.1099}]
["Тип процентної ставки","Фіксована"]
["Порядок зміни змінюваної процентної ставки","Інформація не заповнюється у зв'язку з фіксованим типом процентної ставки"]
["Платежі за супровідні послуги кредитодавця, обов’язкові для укладання договору, грн.:","(зазначаються розмір платежу та база його розрахунку)"]
["1. Комісія за надання кредиту (одноразово від суми кредиту на купівлю авто)",{"$f":"'Калькулятор '!E12","v":0}]
[null,{"$f":"'Калькулятор '!K12","v":0}]
["2. Обслуговування кредитної заборгованості (щомісячно від початкової суми кредиту)",{"$f":"'Калькулятор '!E13","v":0}]
[null,{"$f":"'Калькулятор '!K13","v":0}]
["3. Розрахунково-касове обслуговування (одноразово  від суми кредиту на авто)",{"$f":"'Калькулятор '!E14","v":0}]
[null,{"$f":"'Калькулятор '!K14","v":0}]
["4. Інші послуги банку (щомісячно від початкової  суми кредиту)",{"$f":"'Калькулятор '!E15","v":2000}]
[null,{"$f":"'Калькулятор '!K15","v":2000}]
["5.Оцінка майна, грн",{"$f":"'Калькулятор '!E21","v":2000}]
["6.Нотаріальні послуги, грн",{"$f":"'Калькулятор '!E19","v":1500}]
["7.Страхування об'єкту застави ( від розміру оціночної вартості майна)",{"$f":"'Калькулятор '!E17","v":6.9900000000000004E-2}]
[null,{"$f":"'Калькулятор '!K17","v":23301.165000000001}]
["8.Страхування життя ( від суми кредиту)",{"$f":"'Калькулятор '!E16","v":0}]
[null,{"$f":"'Калькулятор '!K16","v":0}]
["9. Інші послуги третіх осіб (збори на обов\"язкове державне пенсійне страхування), грн",{"$f":"'Калькулятор '!E22","v":10000.5}]
["Застереження: витрати на такі послуги можуть змінюватися протягом строку дії договору про споживчий кредит","[якщо платежі за такі послуги, пов’язані з отриманням, обслуговуванням і поверненням кредиту, є періодичними]"]
["Платежі за послуги кредитного посередника, що підлягають сплаті споживачем, грн*",{"$f":"'Калькулятор '!E18","v":0}]
["Загальні витрати за кредитом, грн",{"$f":"B55-B25","v":189978.69772555245}]
["Загальна вартість кредиту для споживача за весь строк користування кредитом (у т.ч. тіло кредиту, відсотки, комісії та інші платежі), грн",{"$f":"'Калькулятор '!R114","v":289983.69772555248}]
[" * Реальна річна процентна ставка, відсотків річних",{"$f":"'Калькулятор '!Q114","v":0.75521808862686135}]
["Застереження: наведені обчислення реальної річної процентної ставки та орієнтовної загальної вартості кредиту для споживача є репрезентативними та базуються на обраних споживачем умовах кредитування, викладених вище, і на припущенні, що договір про споживчий кредит залишатиметься дійсним протягом погодженого строку та що кредитодавець і споживач виконають свої обов’язки на умовах та у строки, визначені в договорі.  "]
["Реальна річна процентна ставка обчислена на основі припущення, що процентна ставка та інші платежі за послуги кредитодавця та третіх осіб залишатимуться незмінними та застосовуватимуться протягом строку дії договору про споживчий кредит."]
["Застереження: використання інших способів надання кредиту та/або зміна інших вищезазначених умов кредитування можуть мати наслідком застосування іншої реальної річної процентної ставки та орієнтовної загальної вартості кредиту для споживача."]
["Платежі за супровідні послуги третіх осіб, обов’язкові для укладення договору/отримання кредиту, грн.:","зазначаються розмір платежу та база його розрахунку"]
["послуги нотаріуса","Так, перелік нотаріусів зазначено на сайті: https://tascombank.ua/you/credits/na_prydbannia_avto\n"]
["послуги оцінювача","Ні"]
["послуги страховика","Так, щорічно, перелік зазначено на сайті: https://tascombank.ua/you/credits/na_prydbannia_avto"]
["5. Порядок повернення кредиту"]
["Кількість та розмір платежів, періодичність внесення","Надається у вигляді графіку платежів, у якому визначаються кількість, розмір платежів та періодичність їх внесення. "]
["6. Додаткова інформація*"]
[" Наслідки прострочення виконання та/або невиконання зобов’язань за договором про споживчий кредит:"]
[]
["пеня","Пеня в розмірі подвійної облікової ставки Національного банку України, яка діяла в період, за який сплачується пеня, від суми платежу за кожний день прострочення - за порушення взятих на себе зобов'язань по своєчасному поверненню основної суми боргу та/або сплати процентів за користування кредитом та/або сплати суми комісійної винагороди, але не більше 15% від суми простроченого платежу. Сукупна сума пені, нарахована за порушення зобов'язань споживачем на підставі договору про споживчий кредит, не може перевищувати половини суми, одержаної споживачем за договором про споживчий кредит."]
["штрафи",{"$f":"IF('Додаток 21 \"Форма інформування\"'!D38=Продукты!$B$2,Продукты!B23,IF('Додаток 21 \"Форма інформування\"'!D38=Продукты!$C$2,Продукты!C23,IF('Додаток 21 \"Форма інформування\"'!D38=Продукты!$D$2,Продукты!D23,IF('Додаток 21 \"Форма інформування\"'!D38=Продукты!$E$2,Продукты!E23,IF('Додаток 21 \"Форма інформування\"'!D38=Продукты!$F$2,Продукты!F23,IF('Додаток 21 \"Форма інформування\"'!D38=Продукты!$G$2,Продукты!G23,IF('Додаток 21 \"Форма інформування\"'!D38=Продукты!$H$2,Продукты!H23,IF('Додаток 21 \"Форма інформування\"'!D38=Продукты!$I$2,Продукты!I23,IF('Додаток 21 \"Форма інформування\"'!D38=Продукты!K2,Продукты!K23,IF('Додаток 21 \"Форма інформування\"'!D38=Продукты!L2,Продукты!L23,Продукты!F23))))))))))","v":" - 5% від суми кредиту  за надання Позичальником завідомо недостовірної інформації, яка стосується умов  Кредитного договору та/або процесу його виконання.                                                                                                                                                - 5% від суми кредиту  за ненадання Позичальником інформації відносно зміни паспортних даних, місця роботи, контактних номерів телефонів, зміни у складі сім\"ї, а  також, інформації, що стосується судових спарав, стороною яких є Позичальник.                                                                                                                           - 5% від суми кредиту за ненадання  Позичальником інформації та документів щодо зміни  його фінансового та майнового стану.                                                                                                                                                            -  5% від суми кредиту за ненадання Позичальником для огляду трансортного засобу, що є Предметом застави.  "}]
["процентна ставка, яка застосовується при невиконанні зобов’язання щодо повернення кредиту","30% річних"]
["процентна ставка, яка застосовується за невиконання умов Кредитного договору в частині \"Страхування\"","30% річних"]
["* Плата за здійснення переказу коштів з інших банків в погашення кредитів, сплату відсотків та інших платежів за кредитами відповідно кредитних договорів","Згідно з тарифами відповідного банку"]
["Кредитодавець має право залучати до врегулювання простроченої заборгованості колекторську компанію.","Так"]
["Вимоги щодо взаємодії із споживачами при врегулюванні простроченої заборгованості (вимоги щодо етичної поведінки), встановлені статтею 25 Закону України \"Про споживче кредитування\"."]
["7. Інші важливі правові аспекти"]
["7.1. Споживач має право безкоштовно отримати копію проекту договору про споживчий кредит у письмовій чи електронній формі за своїм вибором. Це положення не застосовується у разі відмови кредитодавця від продовження процесу укладання договору зі споживачем."]
["7.2. Споживач має право відмовитися від договору про споживчий кредит протягом 14 календарних днів у порядку та на умовах, визначених Законом України \"Про споживче кредитування\".","Ні"]
["7.3.Споживач має право достроково повернути споживчий кредит без будь-якої додаткової плати, пов’язаної з достроковим поверненням. Договором про споживчий кредит може бути встановлений обов’язок повідомлення кредитодавця про намір дострокового повернення споживчого кредиту з оформленням відповідного документа."]
["7.4. Умови договору про споживчий кредит можуть відрізнятися від інформації, наведеної в цьому Паспорті споживчого кредиту, та будуть залежати від проведеної кредитодавцем оцінки кредитоспроможності споживача з урахуванням, зокрема, наданої ним інформації про майновий та сімейний стан, розмір доходів тощо."]
["Дата надання інформації:","Ця інформація зберігає чинність та є актуальною до:"]
[null,"\"_____\" ___________________________ року"]
["Підпис кредитодавця:___________________","__________________________________________ПІБ, ___________________підпис"]
[]
["Підтверджую отримання та ознайомлення з інформацією про умови кредитування та орієнтовну загальну вартість кредиту, надані виходячи із обраних мною умов кредитування."]
["Підтверджую отримання мною всіх пояснень, необхідних для забезпечення можливості оцінити, чи адаптовано договір до моїх потреб та фінансової ситуації, зокрема шляхом роз’яснення наведеної інформації, в тому числі суттєвих характеристик запропонованих послуг та певних наслідків, які вони можуть мати для мене, в тому числі в разі невиконання мною зобов’язань за таким договором."]
["Підпис споживача:______________________","___ ___________ ____Дата, ______________________________ПІБ, ______________підпис."]
["Підтверджую отримання мною інформації про право кредитодавця залучати до врегулювання простроченої заборгованості колекторську компанію у разі невиконання мною зобов’язань за договором про споживчий кредит, про встановлені законодавством вимоги щодо взаємодії із споживачами при врегулюванні простроченої заборгованості (вимоги щодо етичної поведінки), про моє право на звернення до Національного банку України у разі недотримання таких вимог кредитодавцем та/або колекторською компанією, а також про моє право на звернення до суду з позовом про відшкодування шкоди, завданої у процесі врегулювання простроченої заборгованості."]
["Підтверджую повідомлення мене про передбачену статтею 182 Кримінального кодексу України відповідальність за незаконне збирання, зберігання, використання, поширення мною конфіденційної інформації про третіх осіб, персональні дані яких передані мною кредитодавцю."]

{"sheet":"Лист3","index":6,"n_rows":0,"n_cols":0,"rows_kept":0,"cut":false,"hidden":true,"merged":[]}

{"sheet":"Лист2","index":7,"n_rows":0,"n_cols":0,"rows_kept":0,"cut":false,"hidden":true,"merged":[]}

{"sheet":"Лист4","index":8,"n_rows":0,"n_cols":0,"rows_kept":0,"cut":false,"hidden":true,"merged":[]}

{"sheet":"Лист5","index":9,"n_rows":0,"n_cols":0,"rows_kept":0,"cut":false,"hidden":true,"merged":[]}